{"text_format":"1","workbook":"xlsx","n_sheets":6,"sheets":["factuur","Herinnering","Aangetekende","klantenlisting","Artikelen","Locatie"],"not_rendered":{"charts":0,"images":1,"macros":1,"external_links":0,"defined_names":11,"comments":0,"pivot_tables":0},"unopened":[],"bounds":{"document_bytes":16777216,"sheet_cells":100000,"rows_first":2000,"rows_last":500,"rows_between":2000,"halvings":0,"cell_chars":16384,"cell_head_chars":4096},"cells_cut":0,"cells_raw":0,"read":"whole","date_system":"1900"}

{"sheet":"factuur","index":0,"n_rows":445,"n_cols":19,"rows_kept":445,"cut":false,"hidden":false,"merged":[[392,0,393,14],[394,0,394,14],[186,10,186,11],[187,10,187,11],[192,10,192,11],[10,4,11,8],[5,9,5,13],[444,0,444,14],[324,0,324,13],[272,0,273,14],[274,0,274,14],[202,2,202,5],[202,6,202,7],[202,10,202,11],[203,2,203,5],[203,6,203,7],[203,10,203,11],[204,2,204,5],[204,6,204,7],[204,10,204,11],[198,2,198,5],[198,6,198,7],[198,10,198,11],[200,0,200,14],[201,2,201,5],[201,6,201,7],[187,6,187,7],[188,6,188,7],[189,6,189,7],[179,2,179,5],[180,2,180,5],[181,2,181,5],[201,10,201,11],[189,10,189,11],[190,10,190,11],[191,10,191,11],[180,6,180,7],[181,6,181,7],[182,6,182,7],[183,6,183,7],[183,10,183,11],[180,10,180,11],[181,10,181,11],[182,10,182,11],[184,6,184,7],[185,6,185,7],[186,6,186,7],[178,2,178,5],[196,0,196,14],[197,2,197,5],[197,6,197,7],[197,10,197,11],[187,2,187,5],[188,2,188,5],[189,2,189,5],[190,2,190,5],[191,2,191,5],[192,2,192,5],[182,2,182,5],[183,2,183,5],[184,2,184,5],[185,2,185,5],[186,2,186,5],[192,6,192,7],[185,10,185,11],[194,8,194,9],[194,10,194,11],[184,10,184,11],[190,6,190,7],[191,6,191,7],[188,10,188,11],[162,6,162,7],[44,3,44,8],[159,10,159,11],[160,10,160,11],[157,6,157,7],[168,2,168,5],[169,2,169,5],[161,10,161,11],[162,10,162,11],[53,3,53,9],[157,2,157,5],[56,3,56,7],[163,10,163,11],[164,10,164,11],[165,10,165,11],[166,10,166,11],[165,6,165,7],[165,2,165,5],[166,2,166,5],[167,2,167,5],[158,10,158,11],[158,6,158,7],[159,6,159,7],[160,6,160,7],[176,10,176,11],[177,6,177,7],[177,10,177,11],[171,2,171,5],[173,2,173,5],[178,10,178,11],[179,10,179,11],[178,6,178,7],[175,6,175,7],[176,6,176,7],[179,6,179,7],[176,2,176,5],[177,2,177,5],[171,10,171,11],[172,10,172,11],[173,10,173,11],[175,10,175,11],[175,2,175,5],[173,6,173,7],[172,2,172,5],[174,2,174,5],[174,6,174,7],[171,6,171,7],[174,10,174,11],[172,6,172,7],[163,6,163,7],[164,6,164,7],[163,2,163,5],[164,2,164,5],[170,2,170,5],[166,6,166,7],[167,6,167,7],[167,10,167,11],[168,6,168,7],[169,6,169,7],[170,6,170,7],[168,10,168,11],[169,10,169,11],[170,10,170,11],[158,2,158,5],[159,2,159,5],[160,2,160,5],[157,10,157,11],[49,12,50,13],[49,7,50,11],[53,12,53,13],[46,3,46,8],[39,9,40,11],[25,10,25,11],[26,10,26,11],[27,10,27,11],[32,1,32,8],[18,10,18,11],[38,10,38,11],[33,10,33,11],[34,10,34,11],[21,3,21,8],[19,3,19,8],[27,3,27,8],[32,10,32,11],[36,10,36,11],[28,10,28,11],[30,10,30,11],[31,10,31,11],[24,10,24,11],[14,12,14,13],[19,10,19,11],[20,10,20,11],[21,10,21,11],[22,10,22,11],[33,1,33,8],[10,3,11,3],[18,3,18,8],[22,1,22,8],[28,1,28,8],[17,6,17,7],[17,10,17,11],[14,8,14,9],[16,1,16,13],[29,10,29,11],[24,1,24,8],[26,1,26,8],[10,1,11,2],[20,1,20,8],[23,10,23,11],[31,1,31,8],[23,3,23,8],[25,3,25,8],[30,1,30,8],[161,6,161,7],[161,2,161,5],[162,2,162,5],[44,12,47,13],[43,12,43,13],[43,9,43,11],[39,12,40,13],[43,3,43,8],[34,1,34,8],[35,1,35,8],[45,3,45,8],[37,1,37,8],[38,1,38,8],[47,3,47,8],[47,9,47,11],[45,9,45,11],[36,1,36,8],[35,10,35,11],[155,0,155,13],[62,0,62,13],[54,12,54,13],[44,9,44,11],[37,10,37,11],[46,9,46,11]]}
["2021-01-10","Markata",null,null,null,null,null,null,null,null,null,null,null,null,null,null,null,null,0]
[null,null,null,null,null,null,null,null,null,null,null,null,null,null,null,null,null,null,1]
[null,null,null,null,null,null,null,null,null,{"$f":"IF(B11=\"Bestelbon :\",\"Leverancier :\",\"Klantnummer :\")","v":"Klantnummer :"},null,null,null,null,null,null,null,null,2]
[null,null,null,null,null,null,null,null,null,{"$f":"_xlfn.XLOOKUP(J6,klantenlisting!B:B,klantenlisting!A:A,\" \")","v":0},null,null,null,null,null,null,null,null,3]
[null,"Ondn°:",null,null,null,null,null,null,null,null,null,null,null,null,null,null,null,null,4]
[null,null,null,null,null,null,null,null,null,null,null,null,null,null,null,null,null,null,5]
[null,{"$f":"IF(AND($L$10>1,_xlfn.XLOOKUP($J$6,klantenlisting!B:B,klantenlisting!K:K)>1),\"Klantnummer : \" & _xlfn.XLOOKUP($J$6,klantenlisting!B:B,klantenlisting!K:K),)","v":0},null,null,null,null,null,null,null,{"$f":"IF(L10>1,\"t.a.v. \" & (_xlfn.XLOOKUP(J6,Tabel3[Benaming],Tabel3[Aanspreektitel])),)","v":0},null,null,null,null,null,null,null,null,6]
[null,null,null,null,null,null,null,null,null,{"$f":"_xlfn.XLOOKUP(J6,Tabel3[Benaming],Tabel3[Adres],\" \")","v":0},null,null,null,null,null,"Offerte :","OF",null,7]
[null,null,null,null,null,null,null,null,null,{"$f":"_xlfn.XLOOKUP(J6,Tabel3[Benaming],Tabel3[Postcode & gemeente])","v":0},null,null,null,null,null,"Order :","OR",null,8]
[null,null,null,null,null,null,null,null,null,{"$f":"IF(L10>0,\"Ondn°:\",\"\")","v":""},null,{"$f":"_xlfn.XLOOKUP($J$6,Tabel3[Benaming],Tabel3[BTW-nr])","v":0},null,null,null,"Factuur :","VK",null,9]
[null," ",null,{"$f":"_xlfn.XLOOKUP(B11,P8:P13,Q8:Q13,\"\")","v":""},{"$f":"YEAR(D15) &\"-0\"","v":"1900-0"},null,null,null,null,null,null,null,null,null,null,"Creditnota :","CN",null,10]
[null,null,null,null,null,null,null,null,null,null,null,null,null,null,null,"Bestelbon :","BB",null,11]
[null,null,null,null,null,null,null,null,null,null,null,null,null,null,null,"Verkoop :","SA",null,12]
[null,null,null,{"$f":"IF(B11=P8,\"Opmaakdatum :\",\"Datum :\")","v":"Datum :"},null,null,null,null,{"$f":"IF(B11=P10,\"Datum opeisbaarheid BTW :\",0)","v":0},null,null,null,{"$f":"IF(B11=P10,\"Leverdatum :\",0)","v":0},null,null," "," ",null,13]
[null,null,null,null,null,null,null,null,{"$f":"IF(B11=P10,D15,0)","v":"00:00:00"},null,null,null,{"$f":"IF(AND(B11=P10,D15>1/1/2020),D15-5,\"\")","v":""},null,null,null,null,null,14]
[null,null,null,null,null,null,null,null,null,null,null,null,null,null,null,null,null,null,15]
[null," Plaats levering of uitvoering werf :",null,null,null,null,null,null,null,null,null,null,null,null,null,",",null,null,16]
[null,null,null,null,null,null,null,null,null,null,null,null,null,null,null,{"$f":"J8&\", \"&J9","v":"0, 0"},null,null,17]
[null,"Artikel",null,"Aard goederen / werkuren",null,null,null,null,null,"Aantal","Eenheid",null,"Bedrag","BTW %",null,"Diverse werven",null,null,18]
[null,{"$f":"_xlfn.IFS($B$11=P14,P14,$B$11=\"\",\"\",AND($J$6=\"Vanhaeren Services & Scaffoldings BVBA\",$C$158=P154),P35,$C$158=P155,P34,$C$158=P153,\"\")","v":" "},null,{"$f":"IF(B20=P34,\"(zie bijlage)\",\"\")","v":""},null,null,null,null,null,{"$f":"_xlfn.IFS($B$20=\"\",0,$B$20=P26,0,$J$6=\"Vanhaeren Services & Scaffoldings BVBA\",SUM(A159:A193),$B$20=P34,1)","v":0},{"$f":"_xlfn.IFNA(INDEX($P$26:$Q$36,MATCH($B$20,$P$26:$P$36,0),2),0)","v":0},null,{"$f":"_xlfn.IFNA(SUM(J20*K20),0)","v":0},{"$f":"IF(AND($J$6=\"Vanhaeren Services & Scaffoldings BVBA\",B20=P35),21,)","v":0},null,"Andere : ",null,null,19]
[null,null,null,null,null,null,null,null,null,null,null,null,null,null,null,"home adres",null,null,20]
[null,{"$f":"_xlfn.IFS($B$11=P14,P14,$B$11=\"\",\"\",AND($J$6=\"Vanhaeren Services & Scaffoldings BVBA\",$C$158=P154),P36,$B$11=P9,P26,$B$11=P11,P26,$B$11=P12,P26,$B$11=P13,P26,$C$158=P155,P27,$C$158=P153,\"\")","v":" "},null,{"$f":"_xlfn.IFS($B$22=P26,P26,$B$22=\"\",P26,AND($B$22=P27,$B$11=P8),\"(geschatte aantal uren)\",$B$22=P27,\"(zie bijlage)\",$B$22=P36,\"\",$B$22=P29,\"\",$B$22=P30,\"\",$B$22=P31,\"\",$B$22=P32,\"\",$B$22=P33,\"\")","v":" "},null,null,null,null,null,{"$f":"IF($J$6=\"Vanhaeren Services & Scaffoldings BVBA\",SUM(B159:B193),SUM(J202:J205))","v":0},{"$f":"_xlfn.IFNA(INDEX($P$26:$Q$36,MATCH($B$22,$P$26:$P$36,0),2),0)","v":0},null,{"$f":"_xlfn.IFNA(SUM(J22*K22),\"\")","v":0},{"$f":"IF(AND($J$6=\"Vanhaeren Services & Scaffoldings BVBA\",B22=P36),21,)","v":0},null,"Ophaling filiaal",null,null,21]
[null,null,null,null,null,null,null,null,null,null,null,null,null,null,null,null,null,null,22]
[null," ",null,null,null,null,null,null,null,{"$f":"IF(AND($J$6=\"Vanhaeren Services & Scaffoldings BVBA\",G198>1/1/2020),SUM(J198:J199),0)","v":0},{"$f":"_xlfn.IFNA(INDEX($P$26:$Q$36,MATCH(B24,$P$26:$P$36,0),2),0)","v":0},null,{"$f":"_xlfn.IFNA(SUM(J24*K24),0)","v":0},{"$f":"IF(AND($J$6=\"Vanhaeren Services & Scaffoldings BVBA\",OR(B24=P32,B24=P33)),21,)","v":0},null,null,null,null,23]
[null,null,null,null,null,null,null,null,null,null,null,null,null,null,null,null,null,null,24]
[null," ",null,null,null,null,null,null,null,{"$f":"IF(AND(J6=\"Vanhaeren Services & Scaffoldings BVBA\",G202>1/1/2020),SUM(J202:J205),0)","v":0},{"$f":"_xlfn.IFNA(INDEX($P$26:$Q$36,MATCH(B26,$P$26:$P$36,0),2),0)","v":0},null,{"$f":"_xlfn.IFNA(SUM(J26*K26),0)","v":0},{"$f":"IF(AND($J$6=\"Vanhaeren Services & Scaffoldings BVBA\",OR(B26=P32,B26=P33)),21,)","v":0},null," ",0,null,25]
[null,null,null,null,null,null,null,null,null,null,null,null,null,null,null,"Werkuren",80,null,26]
[null," ",null,null,null,null,null,null,null,null,{"$f":"_xlfn.IFNA(INDEX($P$26:$Q$36,MATCH($B$28,$P$26:$P$36,0),2),\"\")","v":0},null,{"$f":"_xlfn.IFNA(SUM(J28*K28),0)","v":0},null,null,"Levering",null,null,27]
[null,null,null,null,null,null,null,null,null,null,null,null,{"$f":"SUM(J29*K29)","v":0},null,null,"Verzending",0,null,28]
[null,null,null,null,null,null,null,null,null,null,null,null,0,null,null,"Afhaling",0,null,29]
[null,null,null,null,null,null,null,null,null,null,null,null,0,null,null,"Voorrijkosten",3.363E-2,null,30]
[null,null,null,null,null,null,null,null,null,null,null,null,0,null,null,"KM-vergoeding",0.35420000000000001,null,31]
[null,null,null,null,null,null,null,null,null,null,null,null,0,null,null,"Maaltijd",45,null,32]
[null,null,null,null,null,null,null,null,null,null,null,null,0,null,null,"Goederen",{"$f":"K195","v":0},null,33]
[null,null,null,null,null,null,null,null,null,null,null,null,0,null,null,"Gepresteerde dagen",450,null,34]
[null,null,null,null,null,null,null,null,null,null,null,null,0,null,null,"Gepresteerde lange dagen",525,null,35]
[null,null,null,null,null,null,null,null,null,null,null,null,0,null,null,null,null,null,36]
[null,null,null,null,null,null,null,null,null,null,null,null,0,null,null,null,null,null,37]
[null,null,null,null,null,null,null,null,null,null,null,null,0,null,null,null,null,null,38]
[null,null,null,null,null,null,null,null,null,"Totaal excl. BTW",null,null,{"$f":"SUM(M20:M39)","v":0},null,null,null,null,null,39]
[null,null,null,null,null,null,null,null,null,null,null,null,null,null,null,null,null,null,40]
[null,null,null,null,null,null,null,null,null,null,null,null,null,null,null,null,null,null,41]
[null,null,null,null,null,null,null,null,null,null,null,null,null,null,null,null,null,null,42]
[null,null,"BTW %","Maatstaf van heffing",null,null,null,null,null,"Bedrag BTW",null,null,{"$f":"IF(B11=P11,\"Terugbetaling van :\",\"Totaal te betalen :\")","v":"Totaal te betalen :"},null,null,"Totaal opbrengst",null,null,43]
[null,{"$f":"IF(AND($L$10>1,OR(N20=C45,N22=C45,N24=C45,N26=C45,N28=C45)),\"Medecontractant\",)","v":0},"O",{"$f":"_xlfn.CEILING.MATH(SUM(IF(N20=\"O\",M20,),IF(N22=\"O\",M22,),IF(N24=\"O\",M24,),IF(N26=\"O\",M26,),IF(N28=\"O\",M28,)),0.05,1)","v":0},null,null,null,null,null,0,null,null,{"$f":"_xlfn.IFS(B11=P11,SUM(-(D48:L48)),AND(B11=P10,P50>1),SUM(D48:L48-P50),B11=P10,SUM(D48:L48),B11=P8,SUM(D48:L48),B11=P13,SUM(D48:L48),B11=P9,SUM(D48:L48),B11=P12,SUM(D48:L48),P50=\"\",\"\")","v":""},null,null,{"$f":"SUM($D$48-$P$199)","v":0},null,null,44]
[null,null,6,{"$f":"_xlfn.CEILING.MATH(SUM(IF(N20=6,M20,),IF(N22=6,M22,),IF(N24=6,M24,),IF(N26=6,M26,),IF(N28=6,M26,)),0.05,1)","v":0},null,null,null,null,null,{"$f":"_xlfn.CEILING.MATH(SUM(D46*0.06),0.05,1)","v":0},null,null,null,null,null,null,null,null,45]
[null,null,21,{"$f":"_xlfn.CEILING.MATH(SUM(IF(N20=21,M20,),IF(N22=21,M22,),IF(N24=21,M24,),IF(N26=21,M26,),IF(N28=21,M28,)),0.05,1)","v":0},null,null,null,null,null,{"$f":"_xlfn.CEILING.MATH(SUM(D47*0.21),0.05,1)","v":0},null,null,null,null,null,null,null,null,46]
[null,null,null,{"$f":"SUM(D45:I47)","v":0},null,null,null,null,null,{"$f":"SUM(J45:L47)","v":0},null,null,null,null,null,null,null,null,47]
[null,null,null,null,null,null,null,null,null,null,null,null,null,null,null,"Ontvangen voorschot",null,null,48]
[null,null,null,null,null,null,null,{"$f":"_xlfn.IFS(B11=P8,\"Minimum bedrag te voldoen voor akkoord :\",AND(B11=P10,P50>1),\"Ontvangen voorschot :\",B11=P9,\"\",B11=P11,\"\",B11=P12,\"\",B11=P13,\"\",B11=P14,\"\",P50=\"\",\"\")","v":""},null,null,null,null,{"$f":"_xlfn.IFS(B11=P8,M45*0.3,AND(B11=P10,P50>0),P50,P50=\"\",\"\",M45=\"\",\"\")","v":""},null,null,null,null,null,49]
[null,null,null,null,null,null,null,null,null,null,null,null,null,null,null,null,null,null,50]
[null,null,null,null,null,null,null,null,null,null,null,null,null,null,null,null,null,null,51]
[null,null,null,null,null,null,null,null,null,null,null,null,null,null,null,"Zakelijk","zak123",null,52]
[null,null,null,{"$f":"IF(OR(B11=P8,B11=P10,B11=P13),\"Netto te betalen op rekening :\",\"\")","v":""},null,null,null,null,null,null,null,{"$f":"IF(OR(B11=P8,B11=P10,B11=P13),\"IBAN:  \",\"\")","v":""},{"$f":"_xlfn.IFS($B$11=P14,\"\",$B$11=P8,Q53,$B$11=P9,\"\",$B$11=P10,Q53,$B$11=P11,\"\",$B$11=P12,\"\",$B$11=P13,Q53)","v":""},null,null,"Privé","priv123",null,53]
[null,null,null,null,null,null,null,null,null,null,null,{"$f":"IF(OR(B11=P8,B11=P10,B11=P13),\"BIC:  \",\"\")","v":""},{"$f":"IF(OR(B11=P8,B11=P10,B11=P13),\"KREDBEBB\",\"\")","v":""},null,null,null,null,null,54]
[null,null,null,null,null,null,null,null,null,null,null,null,null,null,null,null,null,null,55]
[null,null,null,{"$f":"_xlfn.IFS(B11=P13,\"Verkoopvoorwaarden :\",B11=P8,\"Geldigheid :\",B11=P10,\"Factuurvoorwaarden :\",B11=P11,\"Terug betaling :\",B11=P12,\"\",B11=P9,\"Bevestiging :\",B11=P14,\"\")","v":""},null,null,null,null,{"$f":"_xlfn.IFS(B11=P8,\"30 dagen na opmaakdatum\",OR(B11=P10,B11=P13),\"Betaalbaar contant\",B11=P11,\"Het bedrag wordt binnen 30 dagen terug gestort op uw rekening,\",B11=P12,\"\",B11=P9,\"Akkoord voor de in bijlage genoemde artikelen en prijzen.\",B11=P14,\"\")","v":""},null,null,null,null,null,null,null,null,null,56]
[null,null,null,null,null,null,null,{"$f":"_xlfn.IFS(B11=P8,\"Voorwaarden :\",B11=P9,\"Voorwaarden :\",B11=P10,\"\",B11=P11,\"\",B11=P12,\"\",B11=P12,\"\",B11=P13,\"\",B11=P14,\"\")","v":""},{"$f":"_xlfn.IFS(OR(B11=P10,B11=P13,B11=P9),\"Algemene verkoopsvoorwaarden op achterzijde, u hebt kennis \",B11=P8,\"Voor akkoord dient een voorschot van minimum 30% voldaan te worden\",B11=P11,\"of verrekend met een volgende factuur.\",B11=P12,\"\",B11=P14,\"\")","v":""},null,null,null,null,null,null,null,null,null,57]
[null,null,null,null,null,null,null,null,{"$f":"_xlfn.IFS(B11=P10,\"genomen hier van en gaat akkoord met de voorwaarden.\",B11=P13,\"genomen hier van en gaat akkoord met de voorwaarden.\",B11=P9,\"genomen hier van en gaat akkoord met de voorwaarden.\",B11=P8,\"binnen de termijn van geldigheid van de offerte.\",B11=P11,\"\",B11=P12,\"\",B11=P9,\"\",B11=P14,\"\")","v":""},null,null,null,null,null,null,"14 dagen",null,null,58]
[null,null,null,null,null,null,null,{"$f":"_xlfn.IFS(B11=P8,\"\",B11=P13,\"Factuurclausule :\",B11=P10,\"Factuurclausule :\",B11=P11,\"\",B11=P12,\"\",B11=P9,\"\",B11=P14,\"\")","v":""},{"$f":"_xlfn.IFS(B11=P8,\"\",B11=P13,\"Te betalen binnen een termijn van:\",B11=P10,\"Te betalen binnen een termijn van:\",B11=P11,\"\",B11=P12,\"\",B11=P9,\"\",B11=P14,\"\")","v":""},null,null,{"$f":"IF(OR(B11=P10,B11=P13),IF(L10>1,P60,P59),)","v":0},null,null,null,"30 dagen",null,null,59]
[null,null,null,null,null,null,null,null,null,null,null,null,null,null,null,null,null,null,60]
[null,null,null,null,null,null,null,null,null,null,null,null,null,null,null,null,null,null,61]
["Algemene verkoopsvoorwaarden.",null,null,null,null,null,null,null,null,null,null,null,null,null,null,null,null,null,62]
[null,null,null,null,null,null,null,null,null,null,null,null,null,null,null,null,null,null,63]
[null,null,null,null,null,null,null,null,null,null,null,null,null,null,null,null,null,null,64]
["1.","De goederen worden geleverd zoals omschreven op de factuur of in de bestelbon. ",null,null,null,null,null,null,null,null,null,null,null,null,null,null,null,null,65]
[null,null,null,null,null,null,null,null,null,null,null,null,null,null,null,null,null,null,66]
["2.","De goederen worden geleverd binnen de termijn zoals op de bestelbon vermeld, rekening houdend met",null,null,null,null,null,null,null,null,null,null,null,null,null,null,null,null,67]
[null,"de gebruikelijke tolerantie eigen aan de aard van de industrie of handel.",null,null,null,null,null,null,null,null,null,null,null,null,null,null,null,null,68]
[null,null,null,null,null,null,null,null,null,null,null,null,null,null,null,null,null,null,69]
["3.","De goederen worden vervoerd op kosten en op risico van de koper. ",null,null,null,null,null,null,null,null,null,null,null,null,null,null,null,null,70]
[null,"De levering gebeurt bij de verkoper, behoudens andersluidende schriftelijke overeenkomst.",null,null,null,null,null,null,null,null,null,null,null,null,null,null,null,null,71]
[null,null,null,null,null,null,null,null,null,null,null,null,null,null,null,null,null,null,72]
["4.","Klachten betreffende de geleverde goederen kunnen niet aanvaard worden wanneer zij niet schriftelijk bij ons toekomen",null,null,null,null,null,null,null,null,null,null,null,null,null,null,null,null,73]
[null,"binnen de zeven dagen na levering. ",null,null,null,null,null,null,null,null,null,null,null,null,null,null,null,null,74]
[null,"Verborgen gebreken dienen binnen korte termijn na de ontdekking ervan gemeld te worden.",null,null,null,null,null,null,null,null,null,null,null,null,null,null,null,null,75]
[null,null,null,null,null,null,null,null,null,null,null,null,null,null,null,null,null,null,76]
["5.",{"$f":"\"Onze leveringen zijn ten laatste betaalbaar de \" & (_xlfn.IFS(L60=\"14 dagen\",\"14e\",L60=\"30 dagen\",\"30e\",L60=P58,\"30e\")) & \" dag na factuurdatum.\"","v":"Onze leveringen zijn ten laatste betaalbaar de 30e dag na factuurdatum."},null,null,null,null,null,null,null,null,null,null,null,null,null,null,null,null,77]
[null,"Onze leveringen zijn contant betaalbaar.",null,null,null,null,null,null,null,null,null,null,null,null,null,null,null,null,78]
[null,null,null,null,null,null,null,null,null,null,null,null,null,null,null,null,null,null,79]
["6.","De geleverde koopwaar blijft onze eigendom zolang de volledige prijs (hoofdsom, kosten en interesten) niet betaald is.",null,null,null,null,null,null,null,null,null,null,null,null,null,null,null,null,80]
[null,"De verkrijger draagt de risico’s vanaf de levering. Deze moet de goederen in hun staat bewaren.",null,null,null,null,null,null,null,null,null,null,null,null,null,null,null,null,81]
[null,"De verkoop wordt van rechtswege ontbonden bij niet-betaling op de vervaldag en de goederen worden onverwijld teruggegeven.",null,null,null,null,null,null,null,null,null,null,null,null,null,null,null,null,82]
[null,"Bij gebrek aan betaling van de factuur op de 7e dag na de aangetekende verzending van een aanmaning,",null,null,null,null,null,null,null,null,null,null,null,null,null,null,null,null,83]
[null,"kan de overeenkomst door ons van rechtswege en op eenvoudige aangetekend verzonden verklaring worden ontbonden.",null,null,null,null,null,null,null,null,null,null,null,null,null,null,null,null,84]
[null,"Dit alles onverminderd het betalen van schadevergoeding door de in gebreke gebleven koper.",null,null,null,null,null,null,null,null,null,null,null,null,null,null,null,null,85]
[null,null,null,null,null,null,null,null,null,null,null,null,null,null,null,null,null,null,86]
["7.",{"$f":"\"De factuur dient betaald te worden binnen de termijn van \" & (_xlfn.IFS(L60=\"14 dagen\",\"14\",L60=\"30 dagen\",\"30\",L60=P58,\"30\")) & \" dagen na factuurdatum.\"","v":"De factuur dient betaald te worden binnen de termijn van 30 dagen na factuurdatum."},null,null,null,null,null,null,null,null,null,null,null,null,null,null,null,null,87]
[null,"Betalingen na deze termijn brengen van rechtswege en zonder ingebrekestelling interesten op gelijk aan 10 %, alsmede (evenzeer van rechtswege ",null,null,null,null,null,null,null,null,null,null,null,null,null,null,null,null,88]
[null,"en zonder ingebrekestelling) een forfaitaire vergoeding van 10 % op het factuurbedrag (met een minimum van EUR 75) als schadebeding.",null,null,null,null,null,null,null,null,null,null,null,null,null,null,null,null,89]
[null,"Wanneer de verkoper zijn verplichtingen niet nakomt, is de consument, d.i. elke natuurlijke of rechtspersoon,",null,null,null,null,null,null,null,null,null,null,null,null,null,null,null,null,90]
[null,"die uitsluitend voor niet-beroepsmatige doeleinden, de producten of diensten verwerft of gebruikt,",null,null,null,null,null,null,null,null,null,null,null,null,null,null,null,null,91]
[null,"gerechtigd een vergoeding te eisen voor de rechtbank overeenkomstig het gemeen recht.",null,null,null,null,null,null,null,null,null,null,null,null,null,null,null,null,92]
[null,null,null,null,null,null,null,null,null,null,null,null,null,null,null,null,null,null,93]
["8.","Al onze overeenkomsten worden beheerst door het Belgisch recht. ",null,null,null,null,null,null,null,null,null,null,null,null,null,null,null,null,94]
[null,"Wanneer de klant een natuurlijk of rechtspersoon is die uitsluitend voor niet-beroepsmatige doeleinden, de producten of diensten",null,null,null,null,null,null,null,null,null,null,null,null,null,null,null,null,95]
[null,"verwerft of gebruikt, worden alle betwistingen voortvloeiend uit onderhavige overeenkomst beslecht voor de rechtbank",null,null,null,null,null,null,null,null,null,null,null,null,null,null,null,null,96]
[null,"van de woonplaats van de consument. In de andere gevallen kunnen zij enkel beslecht worden door de rechtbank van  Hasselt.",null,null,null,null,null,null,null,null,null,null,null,null,null,null,null,null,97]
[null,null,null,null,null,null,null,null,null,null,null,null,null,null,null,null,null,null,98]
["9.","Klachten betreffende de factuur dienen binnen de 7 dagen schriftelijk toe te komen op de hoofdzetel.",null,null,null,null,null,null,null,null,null,null,null,null,null,null,null,null,99]
[null,"Indien hieraan niet voldaan wordt, gaat men akkoord met de factuur.",null,null,null,null,null,null,null,null,null,null,null,null,null,null,null,null,100]
[null,null,null,null,null,null,null,null,null,null,null,null,null,null,null,null,null,null,101]
["10.","De prijzen vermeld op een offerte hebben een maximale geldigheidsduur van 30 dagen na opmaak.",null,null,null,null,null,null,null,null,null,null,null,null,null,null,null,null,102]
[null,"Voor akkoord van een offerte, dient een voorschot voldaan te worden van ten minste 30% binnen de termijn van geldigheid van de offerte.",null,null,null,null,null,null,null,null,null,null,null,null,null,null,null,null,103]
[null,null,null,null,null,null,null,null,null,null,null,null,null,null,null,null,null,null,104]
["11.","Het bedrijf behoudt zich het recht om de Algemene voorwaarden eenzijdig en op eender welk tijdstip aan te passen.",null,null,null,null,null,null,null,null,null,null,null,null,null,null,null,null,105]
[null,"Deze voorwaarden gelden als enige voorwaarden.",null,null,null,null,null,null,null,null,null,null,null,null,null,null,null,null,106]
[null,null,null,null,null,null,null,null,null,null,null,null,null,null,null,null,null,null,107]
[null,null,null,null,null,null,null,null,null,null,null,null,null,null,null,null,null,null,108]
[null,null,null,null,null,null,null,null,null,null,null,null,null,null,null,null,null,null,109]
[null,null,null,null,null,null,null,null,null,null,null,null,null,null,null,null,null,null,110]
[null,null,null,null,null,null,null,null,null,null,null,null,null,null,null,null,null,null,111]
[null,null,null,null,null,null,null,null,null,null,null,null,null,null,null,null,null,null,112]
[null,null,null,null,null,null,null,null,null,null,null,null,null,null,null,null,null,null,113]
[null,null,null,null,null,null,null,null,null,null,null,null,null,null,null,null,null,null,114]
[null,null,null,null,null,null,null,null,null,null,null,null,null,null,null,null,null,null,115]
[null,null,null,null,null,null,null,null,null,null,null,null,null,null,null,null,null,null,116]
[null,null,null,null,null,null,null,null,null,null,null,null,null,null,null,null,null,null,117]
[null,null,null,null,null,null,null,null,null,null,null,null,null,null,null,null,null,null,118]
[null,null,null,null,null,null,null,null,null,null,null,null,null,null,null,null,null,null,119]
[null,null,null,null,null,null,null,null,null,null,null,null,null,null,null,null,null,null,120]
[null,null,null,null,null,null,null,null,null,null,null,null,null,null,null,null,null,null,121]
[null,null,null,null,null,null,null,null,null,null,null,null,null,null,null,null,null,null,122]
[null,null,null,null,null,null,null,null,null,null,null,null,null,null,null,null,null,null,123]
[null,null,null,null,null,null,null,null,null,null,null,null,null,null,null,null,null,null,124]
[null,null,null,null,null,null,null,null,null,null,null,null,null,null,null,null,null,null,125]
[null,null,null,null,null,null,null,null,null,null,null,null,null,null,null,null,null,null,126]
[null,null,null,null,null,null,null,null,null,null,null,null,null,null,null,null,null,null,127]
[null,null,null,null,null,null,null,null,null,null,null,null,null,null,null,null,null,null,128]
[null,null,null,null,null,null,null,null,null,null,null,null,null,null,null,null,null,null,129]
[null,null,null,null,null,null,null,null,null,null,null,null,null,null,null,null,null,null,130]
[null,null,null,null,null,null,null,null,null,null,null,null,null,null,null,null,null,null,131]
[null,null,null,null,null,null,null,null,null,null,null,null,null,null,null,null,null,null,132]
[null,null,null,null,null,null,null,null,null,null,null,null,null,null,null,null,null,null,133]
[null,null,null,null,null,null,null,null,null,null,null,null,null,null,null,null,null,null,134]
[null,null,null,null,null,null,null,null,null,null,null,null,null,null,null,null,null,null,135]
[null,null,null,null,null,null,null,null,null,null,null,null,null,null,null,null,null,null,136]
[null,null,null,null,null,null,null,null,null,null,null,null,null,null,null,null,null,null,137]
[null,null,null,null,null,null,null,null,null,null,null,null,null,null,null,null,null,null,138]
[null,null,null,null,null,null,null,null,null,null,null,null,null,null,null,null,null,null,139]
[null,null,null,null,null,null,null,null,null,null,null,null,null,null,null,null,null,null,140]
[null,null,null,null,null,null,null,null,null,null,null,null,null,null,null,null,null,null,141]
[null,null,null,null,null,null,null,null,null,null,null,null,null,null,null,null,null,null,142]
[null,null,null,null,null,null,null,null,null,null,null,null,null,null,null,null,null,null,143]
[null,null,null,null,null,null,null,null,null,null,null,null,null,null,null,null,null,null,144]
[null,null,null,null,null,null,null,null,null,null,null,null,null,null,null,null,null,null,145]
[null,null,null,null,null,null,null,null,null,null,null,null,null,null,null,null,null,null,146]
[null,null,null,null,null,null,null,null,null,null,null,null,null,null,null,null,null,null,147]
[null,{"$f":"(B1)","v":"Markata"},null,null,null,null,null,null,null,null,null,null,null,null,null,null,null,null,148]
[null,{"$f":"(B2)","v":0},null,null,null,null,null,null,null,null,null,null,null,null,null,null,null,null,149]
[null,{"$f":"(B3)","v":0},null,null,null,null,null,null,null,null,null,null,null,null,null,null,null,null,150]
[null,{"$f":"(B4)","v":0},null,null,null,null,null,null,null,null,null,null,null,null,null,null,null,null,151]
[null,"Ondn°:",null,{"$f":"(D5)","v":0},null,null,null,null,null,null,null,null,null,null,null,{"$f":"\"\"","v":""},{"$f":"\"\"","v":""},null,152]
[null,null,null,null,null,null,null,null,null,null,null,null,null,null,null,"Locatie","Datum",null,153]
[null,null,null,null,null,null,null,null,null,null,null,null,null,null,null,"Benaming","Referentie",null,154]
["Bijlage",null,null,null,null,null,null,null,null,null,null,null,null,null,null,null,null,null,155]
[null,null,null,null,null,null,null,null,null,null,null,null,null,null,null,null,null,null,156]
[null,null,{"$f":"IF($J$6=\"Vanhaeren Services & Scaffoldings BVBA\",P154,P155)","v":"Benaming"},null,null,null,{"$f":"_xlfn.IFS(C158=P153,Q153,C158=P154,Q154,C158=P155,Q155)","v":"Referentie"},null,"EHprijs","Aantal","Totaal",null,null,null,null,"Aankoopbedrag","totaal verkoop",null,157]
[{"$f":"IF($C$158=$P$154,_xlfn.XLOOKUP(C159,Locatie!A:A,Locatie!B:B,),)","v":0},{"$f":"IF($C$158=$P$154,_xlfn.XLOOKUP(C159,Locatie!A:A,Locatie!C:C,),)","v":0},null,null,null,null,{"$f":"IF($C$158=$P$154,_xlfn.XLOOKUP(C159,Locatie!A:A,Locatie!F:F),_xlfn.XLOOKUP(C159,Artikelen!A:A,Artikelen!B:B))","v":"00:00:00"},null,{"$f":"_xlfn.IFS(AND(B159=1,$C$158=$P$154,G159>1/1/2000),$Q$36,AND($C$158=$P$154,G159>1/1/2000),$Q$35,$B$11=$P$12,P159,P159<10,P159*2,P159<20,P159*1.5,P159>20,P159*1.4)","v":0},{"$f":"IF(AND($C$158=$P$154,G159>1/1/2020),1,)","v":0},{"$f":"ROUNDUP(I159*J159,2)","v":0},null,null,null,null,{"$f":"IF($C$158=$P$154,,_xlfn.XLOOKUP(C159,Artikelen!A:A,Artikelen!C:C))","v":0},{"$f":"SUM(P159*J159)","v":0},null,158]
[{"$f":"IF($C$158=$P$154,_xlfn.XLOOKUP(C160,Locatie!A:A,Locatie!B:B,),)","v":0},{"$f":"IF($C$158=$P$154,_xlfn.XLOOKUP(C160,Locatie!A:A,Locatie!C:C,),)","v":0},null,null,null,null,{"$f":"IF($C$158=$P$154,_xlfn.XLOOKUP(C160,Locatie!A:A,Locatie!F:F),_xlfn.XLOOKUP(C160,Artikelen!A:A,Artikelen!B:B))","v":"00:00:00"},null,{"$f":"_xlfn.IFS(AND(B160=1,$C$158=$P$154,G160>1/1/2000),$Q$36,AND($C$158=$P$154,G160>1/1/2000),$Q$35,$B$11=$P$12,P160,P160<10,P160*2,P160<20,P160*1.5,P160>20,P160*1.4)","v":0},{"$f":"IF(AND($C$158=$P$154,G160>1/1/2020),1,)","v":0},0,null,null,null,null,{"$f":"IF($C$158=$P$154,,_xlfn.XLOOKUP(C160,Artikelen!A:A,Artikelen!C:C))","v":0},{"$f":"SUM(P160*J160)","v":0},null,159]
[{"$f":"IF($C$158=$P$154,_xlfn.XLOOKUP(C161,Locatie!A:A,Locatie!B:B,),)","v":0},{"$f":"IF($C$158=$P$154,_xlfn.XLOOKUP(C161,Locatie!A:A,Locatie!C:C,),)","v":0},null,null,null,null,{"$f":"IF($C$158=$P$154,_xlfn.XLOOKUP(C161,Locatie!A:A,Locatie!F:F),_xlfn.XLOOKUP(C161,Artikelen!A:A,Artikelen!B:B))","v":"00:00:00"},null,{"$f":"_xlfn.IFS(AND(B161=1,$C$158=$P$154,G161>1/1/2000),$Q$36,AND($C$158=$P$154,G161>1/1/2000),$Q$35,$B$11=$P$12,P161,P161<10,P161*2,P161<20,P161*1.5,P161>20,P161*1.4)","v":0},{"$f":"IF(AND($C$158=$P$154,G161>1/1/2020),1,)","v":0},0,null,null,null,null,{"$f":"IF($C$158=$P$154,,_xlfn.XLOOKUP(C161,Artikelen!A:A,Artikelen!C:C))","v":0},0,null,160]
[{"$f":"IF($C$158=$P$154,_xlfn.XLOOKUP(C162,Locatie!A:A,Locatie!B:B,),)","v":0},{"$f":"IF($C$158=$P$154,_xlfn.XLOOKUP(C162,Locatie!A:A,Locatie!C:C,),)","v":0},null,null,null,null,{"$f":"IF($C$158=$P$154,_xlfn.XLOOKUP(C162,Locatie!A:A,Locatie!F:F),_xlfn.XLOOKUP(C162,Artikelen!A:A,Artikelen!B:B))","v":"00:00:00"},null,{"$f":"_xlfn.IFS(AND(B162=1,$C$158=$P$154,G162>1/1/2000),$Q$36,AND($C$158=$P$154,G162>1/1/2000),$Q$35,$B$11=$P$12,P162,P162<10,P162*2,P162<20,P162*1.5,P162>20,P162*1.4)","v":0},0,0,null,null,null,null,{"$f":"IF($C$158=$P$154,,_xlfn.XLOOKUP(C162,Artikelen!A:A,Artikelen!C:C))","v":0},0,null,161]
[{"$f":"IF($C$158=$P$154,_xlfn.XLOOKUP(C163,Locatie!A:A,Locatie!B:B,),)","v":0},{"$f":"IF($C$158=$P$154,_xlfn.XLOOKUP(C163,Locatie!A:A,Locatie!C:C,),)","v":0},null,null,null,null,{"$f":"IF($C$158=$P$154,_xlfn.XLOOKUP(C163,Locatie!A:A,Locatie!F:F),_xlfn.XLOOKUP(C163,Artikelen!A:A,Artikelen!B:B))","v":"00:00:00"},null,{"$f":"_xlfn.IFS(AND(B163=1,$C$158=$P$154,G163>1/1/2000),$Q$36,AND($C$158=$P$154,G163>1/1/2000),$Q$35,$B$11=$P$12,P163,P163<10,P163*2,P163<20,P163*1.5,P163>20,P163*1.4)","v":0},0,0,null,null,null,null,{"$f":"IF($C$158=$P$154,,_xlfn.XLOOKUP(C163,Artikelen!A:A,Artikelen!C:C))","v":0},0,null,162]
[{"$f":"IF($C$158=$P$154,_xlfn.XLOOKUP(C164,Locatie!A:A,Locatie!B:B,),)","v":0},{"$f":"IF($C$158=$P$154,_xlfn.XLOOKUP(C164,Locatie!A:A,Locatie!C:C,),)","v":0},null,null,null,null,{"$f":"IF($C$158=$P$154,_xlfn.XLOOKUP(C164,Locatie!A:A,Locatie!F:F),_xlfn.XLOOKUP(C164,Artikelen!A:A,Artikelen!B:B))","v":"00:00:00"},null,{"$f":"_xlfn.IFS(AND(B164=1,$C$158=$P$154,G164>1/1/2000),$Q$36,AND($C$158=$P$154,G164>1/1/2000),$Q$35,$B$11=$P$12,P164,P164<10,P164*2,P164<20,P164*1.5,P164>20,P164*1.4)","v":0},0,0,null,null,null,null,{"$f":"IF($C$158=$P$154,,_xlfn.XLOOKUP(C164,Artikelen!A:A,Artikelen!C:C))","v":0},0,null,163]
[{"$f":"IF($C$158=$P$154,_xlfn.XLOOKUP(C165,Locatie!A:A,Locatie!B:B,),)","v":0},{"$f":"IF($C$158=$P$154,_xlfn.XLOOKUP(C165,Locatie!A:A,Locatie!C:C,),)","v":0},null,null,null,null,{"$f":"IF($C$158=$P$154,_xlfn.XLOOKUP(C165,Locatie!A:A,Locatie!F:F),_xlfn.XLOOKUP(C165,Artikelen!A:A,Artikelen!B:B))","v":"00:00:00"},null,{"$f":"_xlfn.IFS(AND(B165=1,$C$158=$P$154,G165>1/1/2000),$Q$36,AND($C$158=$P$154,G165>1/1/2000),$Q$35,$B$11=$P$12,P165,P165<10,P165*2,P165<20,P165*1.5,P165>20,P165*1.4)","v":0},0,0,null,null,null,null,{"$f":"IF($C$158=$P$154,,_xlfn.XLOOKUP(C165,Artikelen!A:A,Artikelen!C:C))","v":0},0,null,164]
[{"$f":"IF($C$158=$P$154,_xlfn.XLOOKUP(C166,Locatie!A:A,Locatie!B:B,),)","v":0},{"$f":"IF($C$158=$P$154,_xlfn.XLOOKUP(C166,Locatie!A:A,Locatie!C:C,),)","v":0},null,null,null,null,{"$f":"IF($C$158=$P$154,_xlfn.XLOOKUP(C166,Locatie!A:A,Locatie!F:F),_xlfn.XLOOKUP(C166,Artikelen!A:A,Artikelen!B:B))","v":"00:00:00"},null,{"$f":"_xlfn.IFS(AND(B166=1,$C$158=$P$154,G166>1/1/2000),$Q$36,AND($C$158=$P$154,G166>1/1/2000),$Q$35,$B$11=$P$12,P166,P166<10,P166*2,P166<20,P166*1.5,P166>20,P166*1.4)","v":0},0,0,null,null,null,null,{"$f":"IF($C$158=$P$154,,_xlfn.XLOOKUP(C166,Artikelen!A:A,Artikelen!C:C))","v":0},0,null,165]
[{"$f":"IF($C$158=$P$154,_xlfn.XLOOKUP(C167,Locatie!A:A,Locatie!B:B,),)","v":0},{"$f":"IF($C$158=$P$154,_xlfn.XLOOKUP(C167,Locatie!A:A,Locatie!C:C,),)","v":0},null,null,null,null,{"$f":"IF($C$158=$P$154,_xlfn.XLOOKUP(C167,Locatie!A:A,Locatie!F:F),_xlfn.XLOOKUP(C167,Artikelen!A:A,Artikelen!B:B))","v":"00:00:00"},null,{"$f":"_xlfn.IFS(AND(B167=1,$C$158=$P$154,G167>1/1/2000),$Q$36,AND($C$158=$P$154,G167>1/1/2000),$Q$35,$B$11=$P$12,P167,P167<10,P167*2,P167<20,P167*1.5,P167>20,P167*1.4)","v":0},0,0,null,null,null,null,{"$f":"IF($C$158=$P$154,,_xlfn.XLOOKUP(C167,Artikelen!A:A,Artikelen!C:C))","v":0},0,null,166]
[{"$f":"IF($C$158=$P$154,_xlfn.XLOOKUP(C168,Locatie!A:A,Locatie!B:B,),)","v":0},{"$f":"IF($C$158=$P$154,_xlfn.XLOOKUP(C168,Locatie!A:A,Locatie!C:C,),)","v":0},null,null,null,null,{"$f":"IF($C$158=$P$154,_xlfn.XLOOKUP(C168,Locatie!A:A,Locatie!F:F),_xlfn.XLOOKUP(C168,Artikelen!A:A,Artikelen!B:B))","v":"00:00:00"},null,{"$f":"_xlfn.IFS(AND(B168=1,$C$158=$P$154,G168>1/1/2000),$Q$36,AND($C$158=$P$154,G168>1/1/2000),$Q$35,$B$11=$P$12,P168,P168<10,P168*2,P168<20,P168*1.5,P168>20,P168*1.4)","v":0},0,0,null,null,null,null,{"$f":"IF($C$158=$P$154,,_xlfn.XLOOKUP(C168,Artikelen!A:A,Artikelen!C:C))","v":0},0,null,167]
[{"$f":"IF($C$158=$P$154,_xlfn.XLOOKUP(C169,Locatie!A:A,Locatie!B:B,),)","v":0},{"$f":"IF($C$158=$P$154,_xlfn.XLOOKUP(C169,Locatie!A:A,Locatie!C:C,),)","v":0},null,null,null,null,{"$f":"IF($C$158=$P$154,_xlfn.XLOOKUP(C169,Locatie!A:A,Locatie!F:F),_xlfn.XLOOKUP(C169,Artikelen!A:A,Artikelen!B:B))","v":"00:00:00"},null,{"$f":"_xlfn.IFS(AND(B169=1,$C$158=$P$154,G169>1/1/2000),$Q$36,AND($C$158=$P$154,G169>1/1/2000),$Q$35,$B$11=$P$12,P169,P169<10,P169*2,P169<20,P169*1.5,P169>20,P169*1.4)","v":0},0,0,null,null,null,null,{"$f":"IF($C$158=$P$154,,_xlfn.XLOOKUP(C169,Artikelen!A:A,Artikelen!C:C))","v":0},0,null,168]
[{"$f":"IF($C$158=$P$154,_xlfn.XLOOKUP(C170,Locatie!A:A,Locatie!B:B,),)","v":0},{"$f":"IF($C$158=$P$154,_xlfn.XLOOKUP(C170,Locatie!A:A,Locatie!C:C,),)","v":0},null,null,null,null,{"$f":"IF($C$158=$P$154,_xlfn.XLOOKUP(C170,Locatie!A:A,Locatie!F:F),_xlfn.XLOOKUP(C170,Artikelen!A:A,Artikelen!B:B))","v":"00:00:00"},null,{"$f":"_xlfn.IFS(AND(B170=1,$C$158=$P$154,G170>1/1/2000),$Q$36,AND($C$158=$P$154,G170>1/1/2000),$Q$35,$B$11=$P$12,P170,P170<10,P170*2,P170<20,P170*1.5,P170>20,P170*1.4)","v":0},0,0,null,null,null,null,{"$f":"IF($C$158=$P$154,,_xlfn.XLOOKUP(C170,Artikelen!A:A,Artikelen!C:C))","v":0},0,null,169]
[{"$f":"IF($C$158=$P$154,_xlfn.XLOOKUP(C171,Locatie!A:A,Locatie!B:B,),)","v":0},{"$f":"IF($C$158=$P$154,_xlfn.XLOOKUP(C171,Locatie!A:A,Locatie!C:C,),)","v":0},null,null,null,null,{"$f":"IF($C$158=$P$154,_xlfn.XLOOKUP(C171,Locatie!A:A,Locatie!F:F),_xlfn.XLOOKUP(C171,Artikelen!A:A,Artikelen!B:B))","v":"00:00:00"},null,{"$f":"_xlfn.IFS(AND(B171=1,$C$158=$P$154,G171>1/1/2000),$Q$36,AND($C$158=$P$154,G171>1/1/2000),$Q$35,$B$11=$P$12,P171,P171<10,P171*2,P171<20,P171*1.5,P171>20,P171*1.4)","v":0},0,0,null,null,null,null,{"$f":"IF($C$158=$P$154,,_xlfn.XLOOKUP(C171,Artikelen!A:A,Artikelen!C:C))","v":0},0,null,170]
[{"$f":"IF($C$158=$P$154,_xlfn.XLOOKUP(C172,Locatie!A:A,Locatie!B:B,),)","v":0},{"$f":"IF($C$158=$P$154,_xlfn.XLOOKUP(C172,Locatie!A:A,Locatie!C:C,),)","v":0},null,null,null,null,{"$f":"IF($C$158=$P$154,_xlfn.XLOOKUP(C172,Locatie!A:A,Locatie!F:F),_xlfn.XLOOKUP(C172,Artikelen!A:A,Artikelen!B:B))","v":"00:00:00"},null,{"$f":"_xlfn.IFS(AND(B172=1,$C$158=$P$154,G172>1/1/2000),$Q$36,AND($C$158=$P$154,G172>1/1/2000),$Q$35,$B$11=$P$12,P172,P172<10,P172*2,P172<20,P172*1.5,P172>20,P172*1.4)","v":0},0,0,null,null,null,null,{"$f":"IF($C$158=$P$154,,_xlfn.XLOOKUP(C172,Artikelen!A:A,Artikelen!C:C))","v":0},0,null,171]
[{"$f":"IF($C$158=$P$154,_xlfn.XLOOKUP(C173,Locatie!A:A,Locatie!B:B,),)","v":0},{"$f":"IF($C$158=$P$154,_xlfn.XLOOKUP(C173,Locatie!A:A,Locatie!C:C,),)","v":0},null,null,null,null,{"$f":"IF($C$158=$P$154,_xlfn.XLOOKUP(C173,Locatie!A:A,Locatie!F:F),_xlfn.XLOOKUP(C173,Artikelen!A:A,Artikelen!B:B))","v":"00:00:00"},null,{"$f":"_xlfn.IFS(AND(B173=1,$C$158=$P$154,G173>1/1/2000),$Q$36,AND($C$158=$P$154,G173>1/1/2000),$Q$35,$B$11=$P$12,P173,P173<10,P173*2,P173<20,P173*1.5,P173>20,P173*1.4)","v":0},0,0,null,null,null,null,{"$f":"IF($C$158=$P$154,,_xlfn.XLOOKUP(C173,Artikelen!A:A,Artikelen!C:C))","v":0},0,null,172]
[{"$f":"IF($C$158=$P$154,_xlfn.XLOOKUP(C174,Locatie!A:A,Locatie!B:B,),)","v":0},{"$f":"IF($C$158=$P$154,_xlfn.XLOOKUP(C174,Locatie!A:A,Locatie!C:C,),)","v":0},null,null,null,null,{"$f":"IF($C$158=$P$154,_xlfn.XLOOKUP(C174,Locatie!A:A,Locatie!F:F),_xlfn.XLOOKUP(C174,Artikelen!A:A,Artikelen!B:B))","v":"00:00:00"},null,{"$f":"_xlfn.IFS(AND(B174=1,$C$158=$P$154,G174>1/1/2000),$Q$36,AND($C$158=$P$154,G174>1/1/2000),$Q$35,$B$11=$P$12,P174,P174<10,P174*2,P174<20,P174*1.5,P174>20,P174*1.4)","v":0},0,0,null,null,null,null,{"$f":"IF($C$158=$P$154,,_xlfn.XLOOKUP(C174,Artikelen!A:A,Artikelen!C:C))","v":0},0,null,173]
[{"$f":"IF($C$158=$P$154,_xlfn.XLOOKUP(C175,Locatie!A:A,Locatie!B:B,),)","v":0},{"$f":"IF($C$158=$P$154,_xlfn.XLOOKUP(C175,Locatie!A:A,Locatie!C:C,),)","v":0},null,null,null,null,{"$f":"IF($C$158=$P$154,_xlfn.XLOOKUP(C175,Locatie!A:A,Locatie!F:F),_xlfn.XLOOKUP(C175,Artikelen!A:A,Artikelen!B:B))","v":"00:00:00"},null,{"$f":"_xlfn.IFS(AND(B175=1,$C$158=$P$154,G175>1/1/2000),$Q$36,AND($C$158=$P$154,G175>1/1/2000),$Q$35,$B$11=$P$12,P175,P175<10,P175*2,P175<20,P175*1.5,P175>20,P175*1.4)","v":0},0,0,null,null,null,null,{"$f":"IF($C$158=$P$154,,_xlfn.XLOOKUP(C175,Artikelen!A:A,Artikelen!C:C))","v":0},0,null,174]
[{"$f":"IF($C$158=$P$154,_xlfn.XLOOKUP(C176,Locatie!A:A,Locatie!B:B,),)","v":0},{"$f":"IF($C$158=$P$154,_xlfn.XLOOKUP(C176,Locatie!A:A,Locatie!C:C,),)","v":0},null,null,null,null,{"$f":"IF($C$158=$P$154,_xlfn.XLOOKUP(C176,Locatie!A:A,Locatie!F:F),_xlfn.XLOOKUP(C176,Artikelen!A:A,Artikelen!B:B))","v":"00:00:00"},null,{"$f":"_xlfn.IFS(AND(B176=1,$C$158=$P$154,G176>1/1/2000),$Q$36,AND($C$158=$P$154,G176>1/1/2000),$Q$35,$B$11=$P$12,P176,P176<10,P176*2,P176<20,P176*1.5,P176>20,P176*1.4)","v":0},0,0,null,null,null,null,{"$f":"IF($C$158=$P$154,,_xlfn.XLOOKUP(C176,Artikelen!A:A,Artikelen!C:C))","v":0},0,null,175]
[{"$f":"IF($C$158=$P$154,_xlfn.XLOOKUP(C177,Locatie!A:A,Locatie!B:B,),)","v":0},{"$f":"IF($C$158=$P$154,_xlfn.XLOOKUP(C177,Locatie!A:A,Locatie!C:C,),)","v":0},null,null,null,null,{"$f":"IF($C$158=$P$154,_xlfn.XLOOKUP(C177,Locatie!A:A,Locatie!F:F),_xlfn.XLOOKUP(C177,Artikelen!A:A,Artikelen!B:B))","v":"00:00:00"},null,{"$f":"_xlfn.IFS(AND(B177=1,$C$158=$P$154,G177>1/1/2000),$Q$36,AND($C$158=$P$154,G177>1/1/2000),$Q$35,$B$11=$P$12,P177,P177<10,P177*2,P177<20,P177*1.5,P177>20,P177*1.4)","v":0},0,0,null,null,null,null,{"$f":"IF($C$158=$P$154,,_xlfn.XLOOKUP(C177,Artikelen!A:A,Artikelen!C:C))","v":0},0,null,176]
[{"$f":"IF($C$158=$P$154,_xlfn.XLOOKUP(C178,Locatie!A:A,Locatie!B:B,),)","v":0},{"$f":"IF($C$158=$P$154,_xlfn.XLOOKUP(C178,Locatie!A:A,Locatie!C:C,),)","v":0},null,null,null,null,{"$f":"IF($C$158=$P$154,_xlfn.XLOOKUP(C178,Locatie!A:A,Locatie!F:F),_xlfn.XLOOKUP(C178,Artikelen!A:A,Artikelen!B:B))","v":"00:00:00"},null,{"$f":"_xlfn.IFS(AND(B178=1,$C$158=$P$154,G178>1/1/2000),$Q$36,AND($C$158=$P$154,G178>1/1/2000),$Q$35,$B$11=$P$12,P178,P178<10,P178*2,P178<20,P178*1.5,P178>20,P178*1.4)","v":0},0,0,null,null,null,null,{"$f":"IF($C$158=$P$154,,_xlfn.XLOOKUP(C178,Artikelen!A:A,Artikelen!C:C))","v":0},0,null,177]
[{"$f":"IF($C$158=$P$154,_xlfn.XLOOKUP(C179,Locatie!A:A,Locatie!B:B,),)","v":0},{"$f":"IF($C$158=$P$154,_xlfn.XLOOKUP(C179,Locatie!A:A,Locatie!C:C,),)","v":0},null,null,null,null,{"$f":"IF($C$158=$P$154,_xlfn.XLOOKUP(C179,Locatie!A:A,Locatie!F:F),_xlfn.XLOOKUP(C179,Artikelen!A:A,Artikelen!B:B))","v":"00:00:00"},null,{"$f":"_xlfn.IFS(AND(B179=1,$C$158=$P$154,G179>1/1/2000),$Q$36,AND($C$158=$P$154,G179>1/1/2000),$Q$35,$B$11=$P$12,P179,P179<10,P179*2,P179<20,P179*1.5,P179>20,P179*1.4)","v":0},0,0,null,null,null,null,{"$f":"IF($C$158=$P$154,,_xlfn.XLOOKUP(C179,Artikelen!A:A,Artikelen!C:C))","v":0},0,null,178]
[{"$f":"IF($C$158=$P$154,_xlfn.XLOOKUP(C180,Locatie!A:A,Locatie!B:B,),)","v":0},{"$f":"IF($C$158=$P$154,_xlfn.XLOOKUP(C180,Locatie!A:A,Locatie!C:C,),)","v":0},null,null,null,null,{"$f":"IF($C$158=$P$154,_xlfn.XLOOKUP(C180,Locatie!A:A,Locatie!F:F),_xlfn.XLOOKUP(C180,Artikelen!A:A,Artikelen!B:B))","v":"00:00:00"},null,{"$f":"_xlfn.IFS(AND(B180=1,$C$158=$P$154,G180>1/1/2000),$Q$36,AND($C$158=$P$154,G180>1/1/2000),$Q$35,$B$11=$P$12,P180,P180<10,P180*2,P180<20,P180*1.5,P180>20,P180*1.4)","v":0},0,0,null,null,null,null,{"$f":"IF($C$158=$P$154,,_xlfn.XLOOKUP(C180,Artikelen!A:A,Artikelen!C:C))","v":0},0,null,179]
[{"$f":"IF($C$158=$P$154,_xlfn.XLOOKUP(C181,Locatie!A:A,Locatie!B:B,),)","v":0},{"$f":"IF($C$158=$P$154,_xlfn.XLOOKUP(C181,Locatie!A:A,Locatie!C:C,),)","v":0},null,null,null,null,{"$f":"IF($C$158=$P$154,_xlfn.XLOOKUP(C181,Locatie!A:A,Locatie!F:F),_xlfn.XLOOKUP(C181,Artikelen!A:A,Artikelen!B:B))","v":"00:00:00"},null,{"$f":"_xlfn.IFS(AND(B181=1,$C$158=$P$154,G181>1/1/2000),$Q$36,AND($C$158=$P$154,G181>1/1/2000),$Q$35,$B$11=$P$12,P181,P181<10,P181*2,P181<20,P181*1.5,P181>20,P181*1.4)","v":0},0,0,null,null,null,null,{"$f":"IF($C$158=$P$154,,_xlfn.XLOOKUP(C181,Artikelen!A:A,Artikelen!C:C))","v":0},0,null,180]
[{"$f":"IF($C$158=$P$154,_xlfn.XLOOKUP(C182,Locatie!A:A,Locatie!B:B,),)","v":0},{"$f":"IF($C$158=$P$154,_xlfn.XLOOKUP(C182,Locatie!A:A,Locatie!C:C,),)","v":0},null,null,null,null,{"$f":"IF($C$158=$P$154,_xlfn.XLOOKUP(C182,Locatie!A:A,Locatie!F:F),_xlfn.XLOOKUP(C182,Artikelen!A:A,Artikelen!B:B))","v":"00:00:00"},null,{"$f":"_xlfn.IFS(AND(B182=1,$C$158=$P$154,G182>1/1/2000),$Q$36,AND($C$158=$P$154,G182>1/1/2000),$Q$35,$B$11=$P$12,P182,P182<10,P182*2,P182<20,P182*1.5,P182>20,P182*1.4)","v":0},0,0,null,null,null,null,{"$f":"IF($C$158=$P$154,,_xlfn.XLOOKUP(C182,Artikelen!A:A,Artikelen!C:C))","v":0},0,null,181]
[{"$f":"IF($C$158=$P$154,_xlfn.XLOOKUP(C183,Locatie!A:A,Locatie!B:B,),)","v":0},{"$f":"IF($C$158=$P$154,_xlfn.XLOOKUP(C183,Locatie!A:A,Locatie!C:C,),)","v":0},null,null,null,null,{"$f":"IF($C$158=$P$154,_xlfn.XLOOKUP(C183,Locatie!A:A,Locatie!F:F),_xlfn.XLOOKUP(C183,Artikelen!A:A,Artikelen!B:B))","v":"00:00:00"},null,{"$f":"_xlfn.IFS(AND(B183=1,$C$158=$P$154,G183>1/1/2000),$Q$36,AND($C$158=$P$154,G183>1/1/2000),$Q$35,$B$11=$P$12,P183,P183<10,P183*2,P183<20,P183*1.5,P183>20,P183*1.4)","v":0},0,0,null,null,null,null,{"$f":"IF($C$158=$P$154,,_xlfn.XLOOKUP(C183,Artikelen!A:A,Artikelen!C:C))","v":0},0,null,182]
[{"$f":"IF($C$158=$P$154,_xlfn.XLOOKUP(C184,Locatie!A:A,Locatie!B:B,),)","v":0},{"$f":"IF($C$158=$P$154,_xlfn.XLOOKUP(C184,Locatie!A:A,Locatie!C:C,),)","v":0},null,null,null,null,{"$f":"IF($C$158=$P$154,_xlfn.XLOOKUP(C184,Locatie!A:A,Locatie!F:F),_xlfn.XLOOKUP(C184,Artikelen!A:A,Artikelen!B:B))","v":"00:00:00"},null,{"$f":"_xlfn.IFS(AND(B184=1,$C$158=$P$154,G184>1/1/2000),$Q$36,AND($C$158=$P$154,G184>1/1/2000),$Q$35,$B$11=$P$12,P184,P184<10,P184*2,P184<20,P184*1.5,P184>20,P184*1.4)","v":0},0,0,null,null,null,null,{"$f":"IF($C$158=$P$154,,_xlfn.XLOOKUP(C184,Artikelen!A:A,Artikelen!C:C))","v":0},0,null,183]
[{"$f":"IF($C$158=$P$154,_xlfn.XLOOKUP(C185,Locatie!A:A,Locatie!B:B,),)","v":0},{"$f":"IF($C$158=$P$154,_xlfn.XLOOKUP(C185,Locatie!A:A,Locatie!C:C,),)","v":0},null,null,null,null,{"$f":"IF($C$158=$P$154,_xlfn.XLOOKUP(C185,Locatie!A:A,Locatie!F:F),_xlfn.XLOOKUP(C185,Artikelen!A:A,Artikelen!B:B))","v":"00:00:00"},null,{"$f":"_xlfn.IFS(AND(B185=1,$C$158=$P$154,G185>1/1/2000),$Q$36,AND($C$158=$P$154,G185>1/1/2000),$Q$35,$B$11=$P$12,P185,P185<10,P185*2,P185<20,P185*1.5,P185>20,P185*1.4)","v":0},0,0,null,null,null,null,{"$f":"IF($C$158=$P$154,,_xlfn.XLOOKUP(C185,Artikelen!A:A,Artikelen!C:C))","v":0},0,null,184]
[{"$f":"IF($C$158=$P$154,_xlfn.XLOOKUP(C186,Locatie!A:A,Locatie!B:B,),)","v":0},{"$f":"IF($C$158=$P$154,_xlfn.XLOOKUP(C186,Locatie!A:A,Locatie!C:C,),)","v":0},null,null,null,null,{"$f":"IF($C$158=$P$154,_xlfn.XLOOKUP(C186,Locatie!A:A,Locatie!F:F),_xlfn.XLOOKUP(C186,Artikelen!A:A,Artikelen!B:B))","v":"00:00:00"},null,{"$f":"_xlfn.IFS(AND(B186=1,$C$158=$P$154,G186>1/1/2000),$Q$36,AND($C$158=$P$154,G186>1/1/2000),$Q$35,$B$11=$P$12,P186,P186<10,P186*2,P186<20,P186*1.5,P186>20,P186*1.4)","v":0},0,0,null,null,null,null,{"$f":"IF($C$158=$P$154,,_xlfn.XLOOKUP(C186,Artikelen!A:A,Artikelen!C:C))","v":0},0,null,185]
[{"$f":"IF($C$158=$P$154,_xlfn.XLOOKUP(C187,Locatie!A:A,Locatie!B:B,),)","v":0},{"$f":"IF($C$158=$P$154,_xlfn.XLOOKUP(C187,Locatie!A:A,Locatie!C:C,),)","v":0},null,null,null,null,{"$f":"IF($C$158=$P$154,_xlfn.XLOOKUP(C187,Locatie!A:A,Locatie!F:F),_xlfn.XLOOKUP(C187,Artikelen!A:A,Artikelen!B:B))","v":"00:00:00"},null,{"$f":"_xlfn.IFS(AND(B187=1,$C$158=$P$154,G187>1/1/2000),$Q$36,AND($C$158=$P$154,G187>1/1/2000),$Q$35,$B$11=$P$12,P187,P187<10,P187*2,P187<20,P187*1.5,P187>20,P187*1.4)","v":0},0,0,null,null,null,null,{"$f":"IF($C$158=$P$154,,_xlfn.XLOOKUP(C187,Artikelen!A:A,Artikelen!C:C))","v":0},0,null,186]
[{"$f":"IF($C$158=$P$154,_xlfn.XLOOKUP(C188,Locatie!A:A,Locatie!B:B,),)","v":0},{"$f":"IF($C$158=$P$154,_xlfn.XLOOKUP(C188,Locatie!A:A,Locatie!C:C,),)","v":0},null,null,null,null,{"$f":"IF($C$158=$P$154,_xlfn.XLOOKUP(C188,Locatie!A:A,Locatie!F:F),_xlfn.XLOOKUP(C188,Artikelen!A:A,Artikelen!B:B))","v":"00:00:00"},null,{"$f":"_xlfn.IFS(AND(B188=1,$C$158=$P$154,G188>1/1/2000),$Q$36,AND($C$158=$P$154,G188>1/1/2000),$Q$35,$B$11=$P$12,P188,P188<10,P188*2,P188<20,P188*1.5,P188>20,P188*1.4)","v":0},0,0,null,null,null,null,{"$f":"IF($C$158=$P$154,,_xlfn.XLOOKUP(C188,Artikelen!A:A,Artikelen!C:C))","v":0},0,null,187]
[{"$f":"IF($C$158=$P$154,_xlfn.XLOOKUP(C189,Locatie!A:A,Locatie!B:B,),)","v":0},{"$f":"IF($C$158=$P$154,_xlfn.XLOOKUP(C189,Locatie!A:A,Locatie!C:C,),)","v":0},null,null,null,null,{"$f":"IF($C$158=$P$154,_xlfn.XLOOKUP(C189,Locatie!A:A,Locatie!F:F),_xlfn.XLOOKUP(C189,Artikelen!A:A,Artikelen!B:B))","v":"00:00:00"},null,{"$f":"_xlfn.IFS(AND(B189=1,$C$158=$P$154,G189>1/1/2000),$Q$36,AND($C$158=$P$154,G189>1/1/2000),$Q$35,$B$11=$P$12,P189,P189<10,P189*2,P189<20,P189*1.5,P189>20,P189*1.4)","v":0},0,0,null,null,null,null,{"$f":"IF($C$158=$P$154,,_xlfn.XLOOKUP(C189,Artikelen!A:A,Artikelen!C:C))","v":0},0,null,188]
[{"$f":"IF($C$158=$P$154,_xlfn.XLOOKUP(C190,Locatie!A:A,Locatie!B:B,),)","v":0},{"$f":"IF($C$158=$P$154,_xlfn.XLOOKUP(C190,Locatie!A:A,Locatie!C:C,),)","v":0},null,null,null,null,{"$f":"IF($C$158=$P$154,_xlfn.XLOOKUP(C190,Locatie!A:A,Locatie!F:F),_xlfn.XLOOKUP(C190,Artikelen!A:A,Artikelen!B:B))","v":"00:00:00"},null,{"$f":"_xlfn.IFS(AND(B190=1,$C$158=$P$154,G190>1/1/2000),$Q$36,AND($C$158=$P$154,G190>1/1/2000),$Q$35,$B$11=$P$12,P190,P190<10,P190*2,P190<20,P190*1.5,P190>20,P190*1.4)","v":0},0,0,null,null,null,null,{"$f":"IF($C$158=$P$154,,_xlfn.XLOOKUP(C190,Artikelen!A:A,Artikelen!C:C))","v":0},0,null,189]
[{"$f":"IF($C$158=$P$154,_xlfn.XLOOKUP(C191,Locatie!A:A,Locatie!B:B,),)","v":0},{"$f":"IF($C$158=$P$154,_xlfn.XLOOKUP(C191,Locatie!A:A,Locatie!C:C,),)","v":0},null,null,null,null,{"$f":"IF($C$158=$P$154,_xlfn.XLOOKUP(C191,Locatie!A:A,Locatie!F:F),_xlfn.XLOOKUP(C191,Artikelen!A:A,Artikelen!B:B))","v":"00:00:00"},null,{"$f":"_xlfn.IFS(AND(B191=1,$C$158=$P$154,G191>1/1/2000),$Q$36,AND($C$158=$P$154,G191>1/1/2000),$Q$35,$B$11=$P$12,P191,P191<10,P191*2,P191<20,P191*1.5,P191>20,P191*1.4)","v":0},0,0,null,null,null,null,{"$f":"IF($C$158=$P$154,,_xlfn.XLOOKUP(C191,Artikelen!A:A,Artikelen!C:C))","v":0},0,null,190]
[{"$f":"IF($C$158=$P$154,_xlfn.XLOOKUP(C192,Locatie!A:A,Locatie!B:B,),)","v":0},{"$f":"IF($C$158=$P$154,_xlfn.XLOOKUP(C192,Locatie!A:A,Locatie!C:C,),)","v":0},null,null,null,null,{"$f":"IF($C$158=$P$154,_xlfn.XLOOKUP(C192,Locatie!A:A,Locatie!F:F),_xlfn.XLOOKUP(C192,Artikelen!A:A,Artikelen!B:B))","v":"00:00:00"},null,{"$f":"_xlfn.IFS(AND(B192=1,$C$158=$P$154,G192>1/1/2000),$Q$36,AND($C$158=$P$154,G192>1/1/2000),$Q$35,$B$11=$P$12,P192,P192<10,P192*2,P192<20,P192*1.5,P192>20,P192*1.4)","v":0},0,0,null,null,null,null,{"$f":"IF($C$158=$P$154,,_xlfn.XLOOKUP(C192,Artikelen!A:A,Artikelen!C:C))","v":0},0,null,191]
[{"$f":"IF($C$158=$P$154,_xlfn.XLOOKUP(C193,Locatie!A:A,Locatie!B:B,),)","v":0},{"$f":"IF($C$158=$P$154,_xlfn.XLOOKUP(C193,Locatie!A:A,Locatie!C:C,),)","v":0},null,null,null,null,{"$f":"IF($C$158=$P$154,_xlfn.XLOOKUP(C193,Locatie!A:A,Locatie!F:F),_xlfn.XLOOKUP(C193,Artikelen!A:A,Artikelen!B:B))","v":"00:00:00"},null,{"$f":"_xlfn.IFS(AND(B193=1,$C$158=$P$154,G193>1/1/2000),$Q$36,AND($C$158=$P$154,G193>1/1/2000),$Q$35,$B$11=$P$12,P193,P193<10,P193*2,P193<20,P193*1.5,P193>20,P193*1.4)","v":0},0,0,null,null,null,null,{"$f":"IF($C$158=$P$154,,_xlfn.XLOOKUP(C193,Artikelen!A:A,Artikelen!C:C))","v":0},0,null,192]
[null,null,null,null,null,null,null,null,null,null,null,null,null,null,null,null,null,null,193]
[null,null,null,null,null,null,null,null,"Tussentotaal :  ",null,{"$f":"_xlfn.CEILING.MATH(SUM(K159:L193),0.05,1)","v":0},null,null,null,null,null,null,null,194]
[null,null,null,null,null,null,null,null,null,null,null,null,null,null,null,null,null,null,195]
[{"$f":"IF($J$6=\"Vanhaeren Services & Scaffoldings BVBA\",\"Maaltijd\",\"\")","v":""},null,null,null,null,null,null,null,null,null,null,null,null,null,null,null,null,null,196]
[null,null,null,null,null,null,null,null,{"$f":"IF(AND($J$6=\"Vanhaeren Services & Scaffoldings BVBA\",G198>1/1/2000),30,)","v":0},{"$f":"IF(AND($J$6=\"Vanhaeren Services & Scaffoldings BVBA\",G198>1/1/2000),1,)","v":0},{"$f":"ROUNDUP(SUM(I198*J198),0.01)","v":0},null,null,null,null,"tussentotaal aankoop",null,null,197]
[null,null,null,null,null,null,null,null,{"$f":"IF(AND($J$6=\"Vanhaeren Services & Scaffoldings BVBA\",G199>1/1/2000),30,)","v":0},{"$f":"IF(AND($J$6=\"Vanhaeren Services & Scaffoldings BVBA\",G199>1/1/2000),1,)","v":0},{"$f":"ROUNDUP(SUM(I199*J199),0.01)","v":0},null,null,null,null,{"$f":"CEILING(SUM(Q159:Q193),0.01)","v":0},null,null,198]
[null,null,null,null,null,null,null,null,null,null,null,null,null,null,null,null,null,null,199]
[{"$f":"_xlfn.IFS($J$6=\"Vanhaeren Services & Scaffoldings BVBA\",\"KM-vergoeding\",$B$11=P8,P27,$B$11=P9,\"\",$B$11=P10,P27,$B$11=P11,\"\",$B$11=P12,\"\",$B$11=P13,\"\",$B$11=P14,\"\")","v":""},null,null,null,null,null,null,null,null,null,null,null,null,null,null,null,null,null,200]
[null,null,null,null,null,null,null,null,{"$f":"IF(AND($J$6=\"Vanhaeren Services & Scaffoldings BVBA\",G202>1/1/2000),$Q$32,\"\")","v":""},null,{"$f":"IF(AND(OR($J$6=\"Vanhaeren Services & Scaffoldings BVBA\",$B$11=$P$10),G202>1/1/2000),ROUNDUP(I202*J202,2),\"\")","v":""},null,null,null,null,"tussentotaal verkoop"]
[null,null,null,null,null,null,null,null,{"$f":"IF(AND($J$6=\"Vanhaeren Services & Scaffoldings BVBA\",G203>1/1/2000),$Q$32,\"\")","v":""},null,{"$f":"IF(AND(OR($J$6=\"Vanhaeren Services & Scaffoldings BVBA\",$B$11=$P$10),G203>1/1/2000),ROUNDUP(I203*J203,2),\"\")","v":""},null,null,null,null,{"$f":"K195","v":0}]
[null,null,null,null,null,null,null,null,{"$f":"IF(AND($J$6=\"Vanhaeren Services & Scaffoldings BVBA\",G204>1/1/2000),$Q$32,\"\")","v":""},null,{"$f":"IF(AND(OR($J$6=\"Vanhaeren Services & Scaffoldings BVBA\",$B$11=$P$10),G204>1/1/2000),ROUNDUP(I204*J204,2),\"\")","v":""}]
[null,null,null,null,null,null,null,null,{"$f":"IF(AND($J$6=\"Vanhaeren Services & Scaffoldings BVBA\",G205>1/1/2000),$Q$32,\"\")","v":""},null,{"$f":"IF(AND(OR($J$6=\"Vanhaeren Services & Scaffoldings BVBA\",$B$11=$P$10),G205>1/1/2000),ROUNDUP(I205*J205,2),\"\")","v":""}]
[]
[null,null,null,null,null,null,null,null,null,null,null,null,null,null,null,"Opbrengst verkoop"]
[null,null,null,null,null,null,null,null,null,null,null,null,null,null,null,{"$f":"SUM(P203-P199)","v":0}]
[]
[]
[null,null,null,null,null,null,null,null,null,{"$f":"IF(B11=P13,,\"Bijlage bij : \" & $D$11 &\" \" & $E$11)","v":"Bijlage bij :  1900-0"}]
[]
[]
[]
[]
[]
[]
[]
[]
[]
[]
[]
[]
[]
[]
[]
[]
[]
[]
[]
[]
[]
[]
[]
[]
[]
[]
[]
[]
[]
[]
[]
[]
[]
[]
[]
[]
[]
[]
[]
[]
[]
[]
[]
[]
[]
[]
[]
[]
[]
[]
[]
[]
[]
[]
[]
[]
[]
[]
[]
[]
[]
["6% BTW-tarief voor renovatiewerken aan woningen ouder dan 10jaar"]
[]
["ATTEST"]
[]
[null,"Toepassing van het verlaagd btw-tarief op werken in onroerende staat aan privé-woningen."]
[null,"Krachtens de bepalingen van de rubrieken XXXI en XXXVIII van het Koninklijk Besluit nr. 20 van 20 juli 1970  tot vaststelling "]
[null,"van de tarieven van de belasting over de toegevoegde waarde en tot indeling van de goederen en diensten bij die tarieven."]
[]
[]
[null,{"$f":"\"Ondergetekende : \" & factuur!$J$6","v":"Ondergetekende : "}]
[]
[null,{"$f":"\"Wonende te : \" & factuur!$J$8 & \" , \" & factuur!$J$9","v":"Wonende te : 0 , 0"}]
[]
[null,"verklaart dat het gebouw gelegen te :",null,null,"…...................................................................................................................."]
[]
[null,"waarvan hij/zij"]
[null,null,"eigenaar"]
[null,null,"huurder"]
[null,null,"vruchtgebruiker"]
[null,null,"zaakvoerder"]
[null,"is, effectief in gebruik is sedert ten minste 10 jaar vòòr het eerste tijdstip van de verschuldigdheid van de btw op de werken"]
[null,"die worden uitgevoerd overeenkomstig"]
[null,null,"de aannemingsovereenkomst"]
[null,null,"de bestelbon"]
[null,null,"de offerte"]
[null,null,"de factuur"]
[null,{"$f":"\"die werd ondertekend op \"& factuur!$D$15 &\" en na de uitvoering van de vermelde werken effectief en\"","v":"die werd ondertekend op  en na de uitvoering van de vermelde werken effectief en"}]
[null,null,"uitsluitend"]
[null,null,"hoofdzakelijk"]
[null,"zal gebruikt worden als privéwoning."]
[]
[]
[]
[]
[null,"Ondertekende verklaart hierbij dientengevolge, opdracht te hebben gegeven tot facturatie tegen 6% van de volgende factu(u)r(en):"]
[null,{"$f":"\"factuurnummer: \" & $D$11 & \" \" & $E$11 & \", van het jaar \" &YEAR($D$15) &\".\"","v":"factuurnummer:  1900-0, van het jaar 1900."}]
[]
[]
[null,"Ondertekende verklaart te weten  dat een foutieve verklaring aanleiding kan geven tot supplementaire BTW, boeten en intresten,"]
[null,"waarvoor de  ondertekende verantwoordelijke is, ingevolge het Koninklijk Besluitnr. 20 van 20 juli 1970."]
[null,"Deze bedragen zullen hem integraal ten laste worden gelegd, indien ze verschuldigd blijken te zijn volgens"]
[null,"de BTW-administratie ingevolge de wetgeving."]
[]
[]
[null,{"$f":"\"Opgemaakt (in 2 exemplaren) te \" &$J$9","v":"Opgemaakt (in 2 exemplaren) te 0"}]
[]
[null,{"$f":"\"Datum : \" & $D$15","v":"Datum : "}]
[]
[null,"Handtekening :"]
[]
[]
[]
["Terug te zenden naar de aannemer die de werken heeft uitgevoerd."]
[]
[]
[]
[]
[]
[]
[]
[]
[]
[]
[]
[]
[]
[]
[]
[]
[]
[]
[]
[]
[]
[]
[]
[]
[]
[]
[]
[]
[]
[]
[]
[]
[]
[]
[]
[]
[]
[]
[]
[]
[]
[]
[]
[]
[]
[]
[]
[]
[]
[]
[]
[]
[]
[]
[]
[]
[]
[]
[]
[]
[]
[]
[]
[]
[]
[]
[]
["6% BTW-tarief voor renovatiewerken aan woningen ouder dan 10jaar"]
[]
["ATTEST"]
[]
[null,"Toepassing van het verlaagd btw-tarief op werken in onroerende staat aan privé-woningen."]
[null,"Krachtens de bepalingen van de rubrieken XXXI en XXXVIII van het Koninklijk Besluit nr. 20 van 20 juli 1970  tot vaststelling "]
[null,"van de tarieven van de belasting over de toegevoegde waarde en tot indeling van de goederen en diensten bij die tarieven."]
[]
[]
[null,"Ondergetekende : "]
[]
[null,"Wonende te : 0 , 0"]
[]
[null,"verklaart dat het gebouw gelegen te :",null,null,"…...................................................................................................................."]
[]
[null,"waarvan hij/zij"]
[null,null,"eigenaar"]
[null,null,"huurder"]
[null,null,"vruchtgebruiker"]
[null,null,"zaakvoerder"]
[null,"is, effectief in gebruik is sedert ten minste 10 jaar vòòr het eerste tijdstip van de verschuldigdheid van de btw op de werken"]
[null,"die worden uitgevoerd overeenkomstig"]
[null,null,"de aannemingsovereenkomst"]
[null,null,"de bestelbon"]
[null,null,"de offerte"]
[null,null,"de factuur"]
[null,"die werd ondertekend op  en na de uitvoering van de vermelde werken effectief en"]
[null,null,"uitsluitend"]
[null,null,"hoofdzakelijk"]
[null,"zal gebruikt worden als privéwoning."]
[]
[]
[]
[]
[null,"Ondertekende verklaart hierbij dientengevolge, opdracht te hebben gegeven tot facturatie tegen 6% van de volgende factu(u)r(en):"]
[null,"factuurnummer:  1900-0, van het jaar 1900."]
[]
[]
[null,"Ondertekende verklaart te weten  dat een foutieve verklaring aanleiding kan geven tot supplementaire BTW, boeten en intresten,"]
[null,"waarvoor de  ondertekende verantwoordelijke is, ingevolge het Koninklijk Besluitnr. 20 van 20 juli 1970."]
[null,"Deze bedragen zullen hem integraal ten laste worden gelegd, indien ze verschuldigd blijken te zijn volgens"]
[null,"de BTW-administratie ingevolge de wetgeving."]
[]
[]
[null,"Opgemaakt (in 2 exemplaren) te 0"]
[]
[null,"Datum : "]
[]
[null,"Handtekening :"]
[]
[]
[]
["Terug te zenden naar de aannemer die de werken heeft uitgevoerd."]

{"sheet":"Herinnering","index":1,"n_rows":105,"n_cols":46,"rows_kept":105,"cut":false,"hidden":false,"merged":[[2,10,2,12],[3,10,3,12],[5,10,5,13],[7,10,7,13],[8,10,8,13],[60,0,60,13],[10,1,11,6],[14,12,14,13],[3,48,3,50],[4,48,4,50],[7,48,7,51],[8,48,8,51],[9,48,9,49],[30,49,30,50],[10,38,11,43],[12,50,12,51],[14,41,14,44],[14,46,14,47],[14,50,14,51],[9,10,9,11]]}
["2021-01-10",{"$f":"factuur!B1","v":"Markata"}]
[]
[null,null,null,null,null,null,null,null,null,null,{"$f":"IF(B11=\"Bestelbon :\",\"Leverancier :\",\"Klantnummer :\")","v":"Klantnummer :"}]
[1,null,null,null,null,null,null,null,null,null,{"$f":"IF(B11=\"Bestelbon\",_xlfn.XLOOKUP(K6,klantenlisting!B:B,klantenlisting!A:A),_xlfn.XLOOKUP(K6,klantenlisting!B:B,klantenlisting!A:A,klantenlisting!A7))","v":"supp-002"}]
[null,{"$f":"factuur!B5","v":"Ondn°:"},null,null,{"$f":"factuur!D5","v":0}]
[2,null,null,null,null,null,null,null,null,null,{"$f":"factuur!J6","v":0}]
[null,{"$f":"IF(AND(factuur!L10>1,_xlfn.XLOOKUP(K6,klantenlisting!B:B,klantenlisting!K:K)>1),\"Klantnummer : \" & _xlfn.XLOOKUP(K6,klantenlisting!B:B,klantenlisting!K:K),\"\")","v":{"$error":"#N/A"}},null,null,null,null,null,null,null,null,{"$f":"IF(M10>1,\"t.a.v. \" & (_xlfn.XLOOKUP($K$6,klantenlisting!$B:$B,klantenlisting!$J:$J)),)","v":{"$error":"#N/A"}}]
[null,null,null,null,null,null,null,null,null,null,{"$f":"factuur!J8","v":0}]
[3,null,null,null,null,null,null,null,null,null,{"$f":"factuur!J9","v":0}]
[null,null,null,null,null,null,null,null,null,null,{"$f":"factuur!J10","v":""},null,{"$f":"_xlfn.XLOOKUP(K6,klantenlisting!B:B,klantenlisting!H:H,\" \")","v":" "},null,"Herinnering."]
[null,"Herinnering.",null,null,null,null,null,null,null,null,null,null,null,null,"2e Herinnering."]
[4,null,null,null,null,null,null,null,null,null,null,null,null,null,"Aanmaning."]
[null,null,null,null,null,null,null,null,null,null,null,{"$f":"\"Pelt, \" & factuur!$D$15","v":"Pelt, "},null,null,"2e Aanmaning."]
[]
[]
[5]
[null,{"$f":"\"Betreft factuur : \" & factuur!D11 & \" \" & factuur!E11","v":"Betreft factuur :  1900-0"}]
[]
[]
[null,"Geachte Heer, Mevrouw,"]
[]
[]
[null,{"$f":"\"Hierbij willen wij u informeren dat uw rekening nog een openstaand saldo vertoond van \" & factuur!$M$45 & \"€\"","v":"Hierbij willen wij u informeren dat uw rekening nog een openstaand saldo vertoond van €"}]
[null,{"$f":"\"op factuur : \" & factuur!D11 & \" \" & factuur!E11","v":"op factuur :  1900-0"}]
[]
[]
[null,"Wij gaan er van uit dat u de betaling over het hoofd hebt gezien en vragen u dan ook het achterstallige bedrag"]
[null,{"$f":"\"over te maken op onze rekening : \" & factuur!M54 & \" BIC: sfsdd met vermelding van het\"","v":"over te maken op onze rekening :  BIC: sfsdd met vermelding van het"}]
[null,"factuurnummer."]
[null,"Als u intussen het bedrag gestort heeft, mag u deze kennisgeving als onbestaand beschouwen."]
[]
[]
[null,"Bij vragen of betalingsproblemen kan u ons steeds bereiken op het nummer : +32(0)"]
[null,"of per mail "]
[]
[]
[]
[]
[null,"Met beleefde groeten,"]
[]
[]
[]
[]
[null,"dfsg"]
[null,"Zaakvoerder."]
[]
[]
[]
[]
[]
[]
[]
[]
[]
[]
[]
[]
[]
[]
[]
[{"$f":"factuur!A63","v":"Algemene verkoopsvoorwaarden."}]
[]
[]
[1,"De goederen worden geleverd zoals omschreven op de factuur of in de bestelbon. ",null,null,null,null,null,null,null,null,null,null,null,null,null,null,null,null,null,null,null,null,{"$f":"factuur!Y66","v":0},{"$f":"factuur!Z66","v":0},null,null,null,null,null,null,null,null,null,null,null,null,null,{"$f":"factuur!AN66","v":0},{"$f":"factuur!AO66","v":0}]
[]
[2,"De goederen worden geleverd binnen de termijn zoals op de bestelbon vermeld, rekening houdend met",null,null,null,null,null,null,null,null,null,null,null,null,null,null,null,null,null,null,null,null,{"$f":"factuur!Y68","v":0},{"$f":"factuur!Z68","v":0},null,null,null,null,null,null,null,null,null,null,null,null,null,{"$f":"factuur!AN68","v":0},{"$f":"factuur!AO68","v":0}]
[null,"de gebruikelijke tolerantie eigen aan de aard van de industrie of handel.",null,null,null,null,null,null,null,null,null,null,null,null,null,null,null,null,null,null,null,null,null,{"$f":"factuur!Z69","v":0},null,null,null,null,null,null,null,null,null,null,null,null,null,null,{"$f":"factuur!AO69","v":0}]
[]
[3,"De goederen worden vervoerd op kosten en op risico van de koper. ",null,null,null,null,null,null,null,null,null,null,null,null,null,null,null,null,null,null,null,null,{"$f":"factuur!Y71","v":0},{"$f":"factuur!Z71","v":0},null,null,null,null,null,null,null,null,null,null,null,null,null,{"$f":"factuur!AN71","v":0},{"$f":"factuur!AO71","v":0}]
[null,"De levering gebeurt bij de verkoper, behoudens andersluidende schriftelijke overeenkomst.",null,null,null,null,null,null,null,null,null,null,null,null,null,null,null,null,null,null,null,null,null,{"$f":"factuur!Z72","v":0},null,null,null,null,null,null,null,null,null,null,null,null,null,null,{"$f":"factuur!AO72","v":0}]
[]
[4,"Klachten betreffende de geleverde goederen kunnen niet aanvaard worden wanneer zij niet schriftelijk bij ons toekomen",null,null,null,null,null,null,null,null,null,null,null,null,null,null,null,null,null,null,null,null,{"$f":"factuur!Y74","v":0},{"$f":"factuur!Z74","v":0},null,null,null,null,null,null,null,null,null,null,null,null,null,{"$f":"factuur!AN74","v":0},{"$f":"factuur!AO74","v":0}]
[null,"binnen de zeven dagen na levering. ",null,null,null,null,null,null,null,null,null,null,null,null,null,null,null,null,null,null,null,null,null,{"$f":"factuur!Z75","v":0},null,null,null,null,null,null,null,null,null,null,null,null,null,null,{"$f":"factuur!AO75","v":0}]
[null,"Verborgen gebreken dienen binnen korte termijn na de ontdekking ervan gemeld te worden.",null,null,null,null,null,null,null,null,null,null,null,null,null,null,null,null,null,null,null,null,null,{"$f":"factuur!Z76","v":0},null,null,null,null,null,null,null,null,null,null,null,null,null,null,{"$f":"factuur!AO76","v":0}]
[]
[5,"Onze leveringen zijn ten laatste betaalbaar de 30e dag na factuurdatum.",null,null,null,null,null,null,null,null,null,null,null,null,null,null,null,null,null,null,null,null,{"$f":"factuur!Y78","v":0},{"$f":"factuur!Z78","v":0},null,null,null,{"$f":"IF(AJ10>0,\"30e\",\"14e\")","v":"14e"},{"$f":"factuur!AD78","v":0},null,null,null,null,null,null,null,null,{"$f":"factuur!AN78","v":0},{"$f":"factuur!AO78","v":0},null,null,null,null,{"$f":"factuur!AS78","v":0}]
[null,"Onze leveringen zijn contant betaalbaar.",null,null,null,null,null,null,null,null,null,null,null,null,null,null,null,null,null,null,null,null,null,{"$f":"factuur!Z79","v":0},null,null,null,null,null,null,null,null,null,null,null,null,null,null,{"$f":"factuur!AO79","v":0}]
[]
[6,"De geleverde koopwaar blijft onze eigendom zolang de volledige prijs (hoofdsom, kosten en interesten) niet betaald is.",null,null,null,null,null,null,null,null,null,null,null,null,null,null,null,null,null,null,null,null,{"$f":"factuur!Y81","v":0},{"$f":"factuur!Z81","v":0},null,null,null,null,null,null,null,null,null,null,null,null,null,{"$f":"factuur!AN81","v":0},{"$f":"factuur!AO81","v":0}]
[null,"De verkrijger draagt de risico’s vanaf de levering. Deze moet de goederen in hun staat bewaren.",null,null,null,null,null,null,null,null,null,null,null,null,null,null,null,null,null,null,null,null,null,{"$f":"factuur!Z82","v":0},null,null,null,null,null,null,null,null,null,null,null,null,null,null,{"$f":"factuur!AO82","v":0}]
[null,"De verkoop wordt van rechtswege ontbonden bij niet-betaling op de vervaldag en de goederen worden onverwijld teruggegeven.",null,null,null,null,null,null,null,null,null,null,null,null,null,null,null,null,null,null,null,null,null,{"$f":"factuur!Z83","v":0},null,null,null,null,null,null,null,null,null,null,null,null,null,null,{"$f":"factuur!AO83","v":0}]
[null,"Bij gebrek aan betaling van de factuur op de 7e dag na de aangetekende verzending van een aanmaning,",null,null,null,null,null,null,null,null,null,null,null,null,null,null,null,null,null,null,null,null,null,{"$f":"factuur!Z84","v":0},null,null,null,null,null,null,null,null,null,null,null,null,null,null,{"$f":"factuur!AO84","v":0}]
[null,"kan de overeenkomst door ons van rechtswege en op eenvoudige aangetekend verzonden verklaring worden ontbonden.",null,null,null,null,null,null,null,null,null,null,null,null,null,null,null,null,null,null,null,null,null,{"$f":"factuur!Z85","v":0},null,null,null,null,null,null,null,null,null,null,null,null,null,null,{"$f":"factuur!AO85","v":0}]
[null,"Dit alles onverminderd het betalen van schadevergoeding door de in gebreke gebleven koper.",null,null,null,null,null,null,null,null,null,null,null,null,null,null,null,null,null,null,null,null,null,{"$f":"factuur!Z86","v":0},null,null,null,null,null,null,null,null,null,null,null,null,null,null,{"$f":"factuur!AO86","v":0}]
[]
[7,"De factuur dient betaald te worden binnen de termijn van 30 dagen na factuurdatum.",null,null,null,null,null,null,null,null,null,null,null,null,null,null,null,null,null,null,null,null,{"$f":"factuur!Y88","v":0},{"$f":"factuur!Z88","v":0},null,null,null,null,null,{"$f":"IF(AJ10>0,\"30\",\"14\")","v":"14"},{"$f":"factuur!AF88","v":0},null,null,null,null,null,null,{"$f":"factuur!AN88","v":0},{"$f":"factuur!AO88","v":0},null,null,null,null,null,null,{"$f":"factuur!AU88","v":0}]
[null,"Betalingen na deze termijn brengen van rechtswege en zonder ingebrekestelling interesten op gelijk aan 10 %, alsmede (evenzeer van rechtswege ",null,null,null,null,null,null,null,null,null,null,null,null,null,null,null,null,null,null,null,null,null,{"$f":"factuur!Z89","v":0},null,null,null,null,null,null,null,null,null,null,null,null,null,null,{"$f":"factuur!AO89","v":0}]
[null,"en zonder ingebrekestelling) een forfaitaire vergoeding van 10 % op het factuurbedrag (met een minimum van EUR 75) als schadebeding.",null,null,null,null,null,null,null,null,null,null,null,null,null,null,null,null,null,null,null,null,null,{"$f":"factuur!Z90","v":0},null,null,null,null,null,null,null,null,null,null,null,null,null,null,{"$f":"factuur!AO90","v":0}]
[null,"Wanneer de verkoper zijn verplichtingen niet nakomt, is de consument, d.i. elke natuurlijke of rechtspersoon,",null,null,null,null,null,null,null,null,null,null,null,null,null,null,null,null,null,null,null,null,null,{"$f":"factuur!Z91","v":0},null,null,null,null,null,null,null,null,null,null,null,null,null,null,{"$f":"factuur!AO91","v":0}]
[null,"die uitsluitend voor niet-beroepsmatige doeleinden, de producten of diensten verwerft of gebruikt,",null,null,null,null,null,null,null,null,null,null,null,null,null,null,null,null,null,null,null,null,null,{"$f":"factuur!Z92","v":0},null,null,null,null,null,null,null,null,null,null,null,null,null,null,{"$f":"factuur!AO92","v":0}]
[null,"gerechtigd een vergoeding te eisen voor de rechtbank overeenkomstig het gemeen recht.",null,null,null,null,null,null,null,null,null,null,null,null,null,null,null,null,null,null,null,null,null,{"$f":"factuur!Z93","v":0},null,null,null,null,null,null,null,null,null,null,null,null,null,null,{"$f":"factuur!AO93","v":0}]
[]
[8,"Al onze overeenkomsten worden beheerst door het Belgisch recht. ",null,null,null,null,null,null,null,null,null,null,null,null,null,null,null,null,null,null,null,null,{"$f":"factuur!Y95","v":0},{"$f":"factuur!Z95","v":0},null,null,null,null,null,null,null,null,null,null,null,null,null,{"$f":"factuur!AN95","v":0},{"$f":"factuur!AO95","v":0}]
[null,"Wanneer de klant een natuurlijk of rechtspersoon is die uitsluitend voor niet-beroepsmatige doeleinden, de producten of diensten",null,null,null,null,null,null,null,null,null,null,null,null,null,null,null,null,null,null,null,null,null,{"$f":"factuur!Z96","v":0},null,null,null,null,null,null,null,null,null,null,null,null,null,null,{"$f":"factuur!AO96","v":0}]
[null,"verwerft of gebruikt, worden alle betwistingen voortvloeiend uit onderhavige overeenkomst beslecht voor de rechtbank",null,null,null,null,null,null,null,null,null,null,null,null,null,null,null,null,null,null,null,null,null,{"$f":"factuur!Z97","v":0},null,null,null,null,null,null,null,null,null,null,null,null,null,null,{"$f":"factuur!AO97","v":0}]
[null,"van de woonplaats van de consument. In de andere gevallen kunnen zij enkel beslecht worden door de rechtbank van  Hasselt.",null,null,null,null,null,null,null,null,null,null,null,null,null,null,null,null,null,null,null,null,null,{"$f":"factuur!Z98","v":0},null,null,null,null,null,null,null,null,null,null,null,null,null,null,{"$f":"factuur!AO98","v":0}]
[]
[9,"Klachten betreffende de factuur dienen binnen de 7 dagen schriftelijk toe te komen op de hoofdzetel.",null,null,null,null,null,null,null,null,null,null,null,null,null,null,null,null,null,null,null,null,{"$f":"factuur!Y100","v":0},{"$f":"factuur!Z100","v":0},null,null,null,null,null,null,null,null,null,null,null,null,null,{"$f":"factuur!AN100","v":0},{"$f":"factuur!AO100","v":0}]
[null,"Indien hieraan niet voldaan wordt, gaat men akkoord met de factuur.",null,null,null,null,null,null,null,null,null,null,null,null,null,null,null,null,null,null,null,null,null,{"$f":"factuur!Z101","v":0},null,null,null,null,null,null,null,null,null,null,null,null,null,null,{"$f":"factuur!AO101","v":0}]
[]
[10,"De prijzen vermeld op een offerte hebben een maximale geldigheidsduur van 30 dagen na opmaak.",null,null,null,null,null,null,null,null,null,null,null,null,null,null,null,null,null,null,null,null,{"$f":"factuur!Y103","v":0},{"$f":"factuur!Z103","v":0},null,null,null,null,null,null,null,null,null,null,null,null,null,{"$f":"factuur!AN103","v":0},{"$f":"factuur!AO103","v":0}]
[null,"Voor akkoord van een offerte, dient een voorschot voldaan te worden van ten minste 30% binnen de termijn van geldigheid van de offerte.",null,null,null,null,null,null,null,null,null,null,null,null,null,null,null,null,null,null,null,null,null,{"$f":"factuur!Z104","v":0},null,null,null,null,null,null,null,null,null,null,null,null,null,null,{"$f":"factuur!AO104","v":0}]
[]
[11,"Het bedrijf behoudt zich het recht om de Algemene voorwaarden eenzijdig en op eender welk tijdstip aan te passen.",null,null,null,null,null,null,null,null,null,null,null,null,null,null,null,null,null,null,null,null,{"$f":"factuur!Y106","v":0},{"$f":"factuur!Z106","v":0},null,null,null,null,null,null,null,null,null,null,null,null,null,{"$f":"factuur!AN106","v":0},{"$f":"factuur!AO106","v":0}]
[null,"Deze voorwaarden gelden als enige voorwaarden.",null,null,null,null,null,null,null,null,null,null,null,null,null,null,null,null,null,null,null,null,null,{"$f":"factuur!Z107","v":0},null,null,null,null,null,null,null,null,null,null,null,null,null,null,{"$f":"factuur!AO107","v":0}]

{"sheet":"Aangetekende","index":2,"n_rows":189,"n_cols":13,"rows_kept":189,"cut":false,"hidden":false,"merged":[[5,10,5,14],[10,1,11,7],[14,9,14,10],[14,13,14,14],[59,0,59,15],[33,9,33,10],[33,6,33,8],[33,12,33,14],[157,6,157,8],[157,9,157,10],[157,12,157,14],[154,0,154,9],[154,10,154,15]]}
["2021-01-10","Markata"]
[]
[null,null,null,null,null,null,null,null,null,null,{"$f":"IF(B11=\"Bestelbon :\",\"Leverancier :\",\"Klantnummer :\")","v":"Klantnummer :"}]
[null,null,null,null,null,null,null,null,null,null,{"$f":"IF(B11=\"Bestelbon\",_xlfn.XLOOKUP(K6,klantenlisting!B:B,klantenlisting!A:A),_xlfn.XLOOKUP(K6,klantenlisting!B:B,klantenlisting!A:A,\"\"))","v":""}]
[null,"Ondn°:"]
[null,null,null,null,null,null,null,null,null,null,{"$f":"factuur!J6","v":0}]
[null,{"$f":"IF(AND(M10>1,_xlfn.XLOOKUP(K6,klantenlisting!B:B,klantenlisting!K:K)>1),\"Klantnummer : \" & _xlfn.XLOOKUP(K6,klantenlisting!B:B,klantenlisting!K:K),)","v":{"$error":"#N/A"}},null,null,null,null,null,null,null,null,{"$f":"IF(M10>1,\"t.a.v. \" & (_xlfn.XLOOKUP(K6,klantenlisting!$B:$B,klantenlisting!$J:$J)),)","v":{"$error":"#N/A"}}]
[null,null,null,null,null,null,null,null,null,null,{"$f":"_xlfn.XLOOKUP(K6,klantenlisting!B:B,klantenlisting!C:C,\" \")","v":" "}]
[null,null,null,null,null,null,null,null,null,null,{"$f":"_xlfn.XLOOKUP(K6,klantenlisting!B:B,klantenlisting!E:E,\" \")","v":" "}]
[null,null,null,null,null,null,null,null,null,null,{"$f":"IF(M10>0,\"Ondn°:\",\"\")","v":"Ondn°:"},null,{"$f":"_xlfn.XLOOKUP(K6,klantenlisting!B:B,klantenlisting!H:H,\" \")","v":" "}]
[null,"Aangetekende zending."]
[]
[null,null,null,null,null,null,null,null,null,null,null,null,{"$f":"\"Pelt, \" & factuur!$D$15","v":"Pelt, "}]
[]
[]
[]
[null,{"$f":"\"Betreft factuur : \"&factuur!$D$11&\" \"&factuur!$E$11","v":"Betreft factuur :  1900-0"}]
[]
[]
[null,"Geachte Heer, Mevrouw,"]
[]
[]
[null,"Alle vorige aanmaningen bleven zonder gevolg. Behoudens betaling of reactie binnen de 8 dagen "]
[null,"op dit voorstel tot minnelijke schikking, zullen wij laten dagvaarden."]
[]
[null,"Indien u deze dagvaarding niet wenst te ontvangen, manen wij u aan om het volledige bedrag van"]
[null,{"$f":"M34 &\"€\" & \" per kerende te betalen op onze rekening : \" & factuur!$M$54 & \"   BIC: dshfsgn,\"","v":{"$error":"#VALUE!"}}]
[null,"of ons een voorstel tot afbetaling te zenden per post of per mail op het volgend adres :"]
[null,{"$f":"IF(B12=Q14,\"\",\"Als u het bedrag intussen gestort hebt, mag u deze kennisgeving als onbestaand beschouwen.\")","v":""}]
[]
[]
[]
[null,{"$f":"IF(B12=Q14,\"Factuur\",\"\")","v":"Factuur"},null,{"$f":"IF(B12=Q14,\"bedrag\",\"\")","v":"bedrag"},null,null,{"$f":"IF(B12=Q14,\"intrest\",\"\")","v":"intrest"},null,null,{"$f":"IF(B12=Q14,\"schadebeding\",\"\")","v":"schadebeding"},null,null,{"$f":"IF(B12=Q14,\"Totaal te betalen\",\"\")","v":"Totaal te betalen"}]
[null,{"$f":" factuur!$D$11 & \" \" & factuur!$E$11","v":" 1900-0"},null,{"$f":"factuur!M45","v":""},null,null,{"$f":"SUM(D34*0.1)","v":{"$error":"#VALUE!"}},null,null,{"$f":"IF(D34*0.1>75,D34*0.1,75)","v":{"$error":"#VALUE!"}},null,null,{"$f":"SUM(D34,G34,J34)","v":{"$error":"#VALUE!"}}]
[]
[]
[]
[]
[null,"Met beleefde groeten,"]
[]
[null,"cbege"]
[null,"Zaakvoerder."]
[]
[]
[]
[]
[]
[]
[]
[]
[]
[]
[]
[]
[]
[]
[]
[]
[]
["Algemene verkoopsvoorwaarden."]
[]
[]
[1,"De goederen worden geleverd zoals omschreven op de factuur of in de bestelbon. "]
[]
[2,"De goederen worden geleverd binnen de termijn zoals op de bestelbon vermeld, rekening houdend met"]
[null,"de gebruikelijke tolerantie eigen aan de aard van de industrie of handel."]
[]
[3,"De goederen worden vervoerd op kosten en op risico van de koper. "]
[null,"De levering gebeurt bij de verkoper, behoudens andersluidende schriftelijke overeenkomst."]
[]
[4,"Klachten betreffende de geleverde goederen kunnen niet aanvaard worden wanneer zij niet schriftelijk bij ons toekomen"]
[null,"binnen de zeven dagen na levering. "]
[null,"Verborgen gebreken dienen binnen korte termijn na de ontdekking ervan gemeld te worden."]
[]
[5,"Onze leveringen zijn ten laatste betaalbaar de 30e dag na factuurdatum."]
[null,"Onze leveringen zijn contant betaalbaar."]
[]
[6,"De geleverde koopwaar blijft onze eigendom zolang de volledige prijs (hoofdsom, kosten en interesten) niet betaald is."]
[null,"De verkrijger draagt de risico’s vanaf de levering. Deze moet de goederen in hun staat bewaren."]
[null,"De verkoop wordt van rechtswege ontbonden bij niet-betaling op de vervaldag en de goederen worden onverwijld teruggegeven."]
[null,"Bij gebrek aan betaling van de factuur op de 7e dag na de aangetekende verzending van een aanmaning,"]
[null,"kan de overeenkomst door ons van rechtswege en op eenvoudige aangetekend verzonden verklaring worden ontbonden."]
[null,"Dit alles onverminderd het betalen van schadevergoeding door de in gebreke gebleven koper."]
[]
[7,"De factuur dient betaald te worden binnen de termijn van 30 dagen na factuurdatum."]
[null,"Betalingen na deze termijn brengen van rechtswege en zonder ingebrekestelling interesten op gelijk aan 10 %, alsmede (evenzeer van rechtswege "]
[null,"en zonder ingebrekestelling) een forfaitaire vergoeding van 10 % op het factuurbedrag (met een minimum van EUR 75) als schadebeding."]
[null,"Wanneer de verkoper zijn verplichtingen niet nakomt, is de consument, d.i. elke natuurlijke of rechtspersoon,"]
[null,"die uitsluitend voor niet-beroepsmatige doeleinden, de producten of diensten verwerft of gebruikt,"]
[null,"gerechtigd een vergoeding te eisen voor de rechtbank overeenkomstig het gemeen recht."]
[]
[8,"Al onze overeenkomsten worden beheerst door het Belgisch recht. "]
[null,"Wanneer de klant een natuurlijk of rechtspersoon is die uitsluitend voor niet-beroepsmatige doeleinden, de producten of diensten"]
[null,"verwerft of gebruikt, worden alle betwistingen voortvloeiend uit onderhavige overeenkomst beslecht voor de rechtbank"]
[null,"van de woonplaats van de consument. In de andere gevallen kunnen zij enkel beslecht worden door de rechtbank van  Hasselt."]
[]
[9,"Klachten betreffende de factuur dienen binnen de 7 dagen schriftelijk toe te komen op de hoofdzetel."]
[null,"Indien hieraan niet voldaan wordt, gaat men akkoord met de factuur."]
[]
[10,"De prijzen vermeld op een offerte hebben een maximale geldigheidsduur van 30 dagen na opmaak."]
[null,"Voor akkoord van een offerte, dient een voorschot voldaan te worden van ten minste 30% binnen de termijn van geldigheid van de offerte."]
[]
[11,"Het bedrijf behoudt zich het recht om de Algemene voorwaarden eenzijdig en op eender welk tijdstip aan te passen."]
[null,"Deze voorwaarden gelden als enige voorwaarden."]
[]
[]
[]
[]
[]
[]
[]
[]
[]
[]
[]
[]
[]
[]
[]
[]
[]
[]
[]
[]
[]
[]
[]
[]
[]
[]
[]
[]
[]
[]
[]
[]
[]
[]
[]
[]
[]
[]
[]
[]
[]
[]
[]
[]
[]
[]
[]
[]
[]
[]
["Voorstel tot afbetaling.",null,null,null,null,null,null,null,null,null,{"$f":"(factuur!J4)","v":0}]
[]
[null,{"$f":"IF(B141=Q143,\"Factuur : vk\",\"\")","v":"Factuur : vk"},null,{"$f":"IF(B141=Q143,\"bedrag\",\"\")","v":"bedrag"},null,null,{"$f":"IF(B141=Q143,\"intrest\",\"\")","v":"intrest"},null,null,{"$f":"IF(B141=Q143,\"schadebeding\",\"\")","v":"schadebeding"},null,null,{"$f":"IF(B141=Q143,\"Totaal te betalen\",\"\")","v":"Totaal te betalen"}]
[null,{"$f":"factuur!$E$11","v":"1900-0"},null,{"$f":"factuur!M45","v":""},null,null,{"$f":"SUM(D158*0.1)","v":{"$error":"#VALUE!"}},null,null,{"$f":"IF(D158*0.1>75,D158*0.1,75)","v":{"$error":"#VALUE!"}},null,null,{"$f":"SUM(D158,G158,J158)","v":{"$error":"#VALUE!"}}]
[]
["( )","Ik wens bewijsstukken te ontvangen."]
["( )","Reeds betaald. Ik zend hierbij een kopie van mijn betalingsbewijs."]
["( )","Opmerkingen :"]
[null,"…................................................................................................................................................................................................"]
[null,"…................................................................................................................................................................................................"]
[null,"…................................................................................................................................................................................................"]
["( )","Ik wens een afbetalingsplan. Hieronder mijn voorstel :"]
[null,"…................................................................................................................................................................................................"]
[null,"…................................................................................................................................................................................................"]
[null,"…................................................................................................................................................................................................"]
[]
[]
[null,"Opgemaakt te  …..................................",null,null,null,"op","…................................................"]
[]
[]
[]
[null,"Naam, Handtekening en eventueel stempel."]
[]
[]
[]
[]
[]
[]
[]
[]
[]
[]
[null,"Mijn e-mail  adres :",null,"…............................................................................."]
[]
[null,"Telefoonnummer waarop ik makkelijk te bereiken ben :",null,null,null,null,null,null,null,"…..................................................."]

{"sheet":"klantenlisting","index":3,"n_rows":41,"n_cols":11,"rows_kept":41,"cut":false,"hidden":false,"merged":[]}
["Nummer","Benaming","Adres","Adres 2","Postcode & gemeente","Tel / GSM","email","BTW-nr","herkenbare benaming","Aanspreektitel","klantnummer"]
["cust-001","cust 01"]
["cust-002","Vanhaeren Services & Scaffoldings BVBA",null,null,null,null,null,"be0345234234"]
["cust-003","cust-003"]
["cust-004","cust-004"]
["supp-001","lev5",null,null,null,null,null,"BE0654123321"]
["supp-002","lev34"]
["supp-003","lev22"]
["supp-004","lev10"]
["supp-005","lev27"]
["supp-006","lev1"]
["supp-007","lev34"]
["supp-008","lev7"]
["supp-009","lev21"]
["supp-010","lev32"]
["supp-011","lev4"]
["supp-012","lev33"]
["supp-013","lev31"]
["supp-014","lev19"]
["supp-015","lev3"]
["supp-016","lev20"]
["supp-017","lev28"]
["supp-018","lev9"]
["supp-019","lev15"]
["supp-020","lev2"]
["supp-021","lev12"]
["supp-022","lev18"]
["supp-023","lev29"]
["supp-024","lev16"]
["supp-025","lev26"]
["supp-026","lev11"]
["supp-027","lev30"]
["supp-028","lev8"]
["supp-029","lev13"]
["supp-030","lev24"]
["supp-031","lev6"]
["supp-032","lev23"]
["supp-033","lev17"]
["supp-035","lev25"]
["supp-036","lev14"]
[null,"_Home"]

{"sheet":"Artikelen","index":4,"n_rows":155,"n_cols":8,"rows_kept":155,"cut":false,"hidden":false,"merged":[]}
["Benaming","referentie","Aankoopprijs","Leverancier","Categorie","Originele prijs","% factor","per"]
[" ",null,{"$f":"IF(AND(lijst[[#This Row],[Originele prijs]]>0,lijst[[#This Row],[% factor]]>0),SUM(lijst[[#This Row],[Originele prijs]]*lijst[[#This Row],[% factor]]),lijst[[#This Row],[Originele prijs]])","v":0}]
["1mod autom 2p 20a","abb2cdb111201R0204",{"$f":"IF(AND(lijst[[#This Row],[Originele prijs]]>0,lijst[[#This Row],[% factor]]>0),SUM(lijst[[#This Row],[Originele prijs]]*lijst[[#This Row],[% factor]]),lijst[[#This Row],[Originele prijs]])","v":0},null,"zekering"]
["2x 1/2 toets lens cream","NIK10061507",{"$f":"IF(AND(lijst[[#This Row],[Originele prijs]]>0,lijst[[#This Row],[% factor]]>0),SUM(lijst[[#This Row],[Originele prijs]]*lijst[[#This Row],[% factor]]),lijst[[#This Row],[Originele prijs]])","v":0},null,"schakelaar"]
["52M kamgeleider L1-L2-L3-N / L1+N/L","FTGE89452130",{"$f":"IF(AND(lijst[[#This Row],[Originele prijs]]>0,lijst[[#This Row],[% factor]]>0),SUM(lijst[[#This Row],[Originele prijs]]*lijst[[#This Row],[% factor]]),lijst[[#This Row],[Originele prijs]])","v":0},null,"zekeringkast"]
["54M kamgeleider 4P L1NL2NL3N - pin","FTGE86354130",{"$f":"IF(AND(lijst[[#This Row],[Originele prijs]]>0,lijst[[#This Row],[% factor]]>0),SUM(lijst[[#This Row],[Originele prijs]]*lijst[[#This Row],[% factor]]),lijst[[#This Row],[Originele prijs]])","v":0},null,"zekeringkast"]
["56M kamgeleider 2P=L1 L2(N) - pin","FTGE80258100",{"$f":"IF(AND(lijst[[#This Row],[Originele prijs]]>0,lijst[[#This Row],[% factor]]>0),SUM(lijst[[#This Row],[Originele prijs]]*lijst[[#This Row],[% factor]]),lijst[[#This Row],[Originele prijs]])","v":0},null,"zekeringkast"]
["aardelectrode 5/8\" 1,5m","BIZ710792",{"$f":"IF(AND(lijst[[#This Row],[Originele prijs]]>0,lijst[[#This Row],[% factor]]>0),SUM(lijst[[#This Row],[Originele prijs]]*lijst[[#This Row],[% factor]]),lijst[[#This Row],[Originele prijs]])","v":0},null,"aarding"]
["aardelectrode klem 5/8\"","HUPHUP32MU16",{"$f":"IF(AND(lijst[[#This Row],[Originele prijs]]>0,lijst[[#This Row],[% factor]]>0),SUM(lijst[[#This Row],[Originele prijs]]*lijst[[#This Row],[% factor]]),lijst[[#This Row],[Originele prijs]])","v":0},null,"aarding"]
["aardelectrode koppelstuk 5/8\"","CAW158040",{"$f":"IF(AND(lijst[[#This Row],[Originele prijs]]>0,lijst[[#This Row],[% factor]]>0),SUM(lijst[[#This Row],[Originele prijs]]*lijst[[#This Row],[% factor]]),lijst[[#This Row],[Originele prijs]])","v":0},null,"aarding"]
["aardingsbeugel 2.5-16 MM2 420MM 50-75mm","BIZ710455",{"$f":"IF(AND(lijst[[#This Row],[Originele prijs]]>0,lijst[[#This Row],[% factor]]>0),SUM(lijst[[#This Row],[Originele prijs]]*lijst[[#This Row],[% factor]]),lijst[[#This Row],[Originele prijs]])","v":0},null,"aarding"]
["aardingsonderbreker equip.","VYN600944",{"$f":"IF(AND(lijst[[#This Row],[Originele prijs]]>0,lijst[[#This Row],[% factor]]>0),SUM(lijst[[#This Row],[Originele prijs]]*lijst[[#This Row],[% factor]]),lijst[[#This Row],[Originele prijs]])","v":0},null,"aarding"]
["afdekpl. 60mm 2-voudig cream","NIK10076200",{"$f":"IF(AND(lijst[[#This Row],[Originele prijs]]>0,lijst[[#This Row],[% factor]]>0),SUM(lijst[[#This Row],[Originele prijs]]*lijst[[#This Row],[% factor]]),lijst[[#This Row],[Originele prijs]])","v":0},null,"schakelaar"]
["afdekpl. 60mm 3-voudig cream","NIK10076300",{"$f":"IF(AND(lijst[[#This Row],[Originele prijs]]>0,lijst[[#This Row],[% factor]]>0),SUM(lijst[[#This Row],[Originele prijs]]*lijst[[#This Row],[% factor]]),lijst[[#This Row],[Originele prijs]])","v":0},null,"schakelaar afwerking"]
["afdekpl. 71mm 2-voudig cream","NIK10076800",{"$f":"IF(AND(lijst[[#This Row],[Originele prijs]]>0,lijst[[#This Row],[% factor]]>0),SUM(lijst[[#This Row],[Originele prijs]]*lijst[[#This Row],[% factor]]),lijst[[#This Row],[Originele prijs]])","v":0},null,"schakelaar afwerking"]
["afdepkpl. Enkel cream","NIK10076100 ",{"$f":"IF(AND(lijst[[#This Row],[Originele prijs]]>0,lijst[[#This Row],[% factor]]>0),SUM(lijst[[#This Row],[Originele prijs]]*lijst[[#This Row],[% factor]]),lijst[[#This Row],[Originele prijs]])","v":0},null,"schakelaar afwerking"]
["aftakdoos OPB.DS IP55","HEL250",{"$f":"IF(AND(lijst[[#This Row],[Originele prijs]]>0,lijst[[#This Row],[% factor]]>0),SUM(lijst[[#This Row],[Originele prijs]]*lijst[[#This Row],[% factor]]),lijst[[#This Row],[Originele prijs]])","v":0},null,"installatiemateriaal"]
["aftakdoos plexo vierk. IP55","LEG092005",{"$f":"IF(AND(lijst[[#This Row],[Originele prijs]]>0,lijst[[#This Row],[% factor]]>0),SUM(lijst[[#This Row],[Originele prijs]]*lijst[[#This Row],[% factor]]),lijst[[#This Row],[Originele prijs]])","v":0},null,"installatiemateriaal"]
["afw.drukknopdimmer 2-100W, CREAM","NIK10031002",{"$f":"IF(AND(lijst[[#This Row],[Originele prijs]]>0,lijst[[#This Row],[% factor]]>0),SUM(lijst[[#This Row],[Originele prijs]]*lijst[[#This Row],[% factor]]),lijst[[#This Row],[Originele prijs]])","v":0},null,"schakelaar dimmer"]
["afw.drukknopdimmer CREAM","NIK10031002",{"$f":"IF(AND(lijst[[#This Row],[Originele prijs]]>0,lijst[[#This Row],[% factor]]>0),SUM(lijst[[#This Row],[Originele prijs]]*lijst[[#This Row],[% factor]]),lijst[[#This Row],[Originele prijs]])","v":0},null,"schakelaar dimmer"]
["autom. Resi9 2P 16A","SERR9F64216",{"$f":"IF(AND(lijst[[#This Row],[Originele prijs]]>0,lijst[[#This Row],[% factor]]>0),SUM(lijst[[#This Row],[Originele prijs]]*lijst[[#This Row],[% factor]]),lijst[[#This Row],[Originele prijs]])","v":0},null,"zekering"]
["autom. Resi9 2P 20A","SERR9F64220",{"$f":"IF(AND(lijst[[#This Row],[Originele prijs]]>0,lijst[[#This Row],[% factor]]>0),SUM(lijst[[#This Row],[Originele prijs]]*lijst[[#This Row],[% factor]]),lijst[[#This Row],[Originele prijs]])","v":0},null,"zekering"]
["autom. RESI9 2P 25A","SERR9F64225",{"$f":"IF(AND(lijst[[#This Row],[Originele prijs]]>0,lijst[[#This Row],[% factor]]>0),SUM(lijst[[#This Row],[Originele prijs]]*lijst[[#This Row],[% factor]]),lijst[[#This Row],[Originele prijs]])","v":0},null,"zekering"]
["autom. Resi9 4P 25A","SERR9F64425",{"$f":"IF(AND(lijst[[#This Row],[Originele prijs]]>0,lijst[[#This Row],[% factor]]>0),SUM(lijst[[#This Row],[Originele prijs]]*lijst[[#This Row],[% factor]]),lijst[[#This Row],[Originele prijs]])","v":0},null,"zekering"]
["autom. Resi9 4p 32a","SERR9F64432",{"$f":"IF(AND(lijst[[#This Row],[Originele prijs]]>0,lijst[[#This Row],[% factor]]>0),SUM(lijst[[#This Row],[Originele prijs]]*lijst[[#This Row],[% factor]]),lijst[[#This Row],[Originele prijs]])","v":0},null,"zekering"]
["bew.melder master","thethemuras180100upnwh",{"$f":"IF(AND(lijst[[#This Row],[Originele prijs]]>0,lijst[[#This Row],[% factor]]>0),SUM(lijst[[#This Row],[Originele prijs]]*lijst[[#This Row],[% factor]]),lijst[[#This Row],[Originele prijs]])","v":0},null,"schakelaar"]
["bew.melder slave","THETHEMURAS180SLAVEUPWH",{"$f":"IF(AND(lijst[[#This Row],[Originele prijs]]>0,lijst[[#This Row],[% factor]]>0),SUM(lijst[[#This Row],[Originele prijs]]*lijst[[#This Row],[% factor]]),lijst[[#This Row],[Originele prijs]])","v":0},null,"schakelaar"]
["blindpl, sokkel en afwerkingsset cream","NIK10176900",{"$f":"IF(AND(lijst[[#This Row],[Originele prijs]]>0,lijst[[#This Row],[% factor]]>0),SUM(lijst[[#This Row],[Originele prijs]]*lijst[[#This Row],[% factor]]),lijst[[#This Row],[Originele prijs]])","v":0},null,"schakelaar afwerking"]
["buisklem beugel 20mm","REY0115",{"$f":"IF(AND(lijst[[#This Row],[Originele prijs]]>0,lijst[[#This Row],[% factor]]>0),SUM(lijst[[#This Row],[Originele prijs]]*lijst[[#This Row],[% factor]]),lijst[[#This Row],[Originele prijs]])","v":0},null,"installatiemateriaal"]
["coax & UTP aansluiting","NIK17065158",{"$f":"IF(AND(lijst[[#This Row],[Originele prijs]]>0,lijst[[#This Row],[% factor]]>0),SUM(lijst[[#This Row],[Originele prijs]]*lijst[[#This Row],[% factor]]),lijst[[#This Row],[Originele prijs]])","v":0},null,"schakelaar"]
["coax & UTP aansluiting afwerk.cream","NIK10065702",{"$f":"IF(AND(lijst[[#This Row],[Originele prijs]]>0,lijst[[#This Row],[% factor]]>0),SUM(lijst[[#This Row],[Originele prijs]]*lijst[[#This Row],[% factor]]),lijst[[#This Row],[Originele prijs]])","v":0},null,"schakelaar afwerking"]
["comp.lasklem 3x0,5-2,5","WAG2273203",{"$f":"IF(AND(lijst[[#This Row],[Originele prijs]]>0,lijst[[#This Row],[% factor]]>0),SUM(lijst[[#This Row],[Originele prijs]]*lijst[[#This Row],[% factor]]),lijst[[#This Row],[Originele prijs]])","v":0},null,"verbindingen",null,null,100]
["comp.lasklem 5x0,5-2,5","WAG2273205",{"$f":"IF(AND(lijst[[#This Row],[Originele prijs]]>0,lijst[[#This Row],[% factor]]>0),SUM(lijst[[#This Row],[Originele prijs]]*lijst[[#This Row],[% factor]]),lijst[[#This Row],[Originele prijs]])","v":0},null,"verbindingen",null,null,100]
["connector zwak stroom 2/5","BIZ330003",{"$f":"IF(AND(lijst[[#This Row],[Originele prijs]]>0,lijst[[#This Row],[% factor]]>0),SUM(lijst[[#This Row],[Originele prijs]]*lijst[[#This Row],[% factor]]),lijst[[#This Row],[Originele prijs]])","v":0},null,"verbindingen"]
["controlesch.2P 16A","NIK10067300",{"$f":"IF(AND(lijst[[#This Row],[Originele prijs]]>0,lijst[[#This Row],[% factor]]>0),SUM(lijst[[#This Row],[Originele prijs]]*lijst[[#This Row],[% factor]]),lijst[[#This Row],[Originele prijs]])","v":0},null,"schakelaar"]
["deur voor kast","haggp413p",{"$f":"IF(AND(lijst[[#This Row],[Originele prijs]]>0,lijst[[#This Row],[% factor]]>0),SUM(lijst[[#This Row],[Originele prijs]]*lijst[[#This Row],[% factor]]),lijst[[#This Row],[Originele prijs]])","v":0},null,"zekeringkast"]
["diff.2P 25A 10mA","SERR9R10225",{"$f":"IF(AND(lijst[[#This Row],[Originele prijs]]>0,lijst[[#This Row],[% factor]]>0),SUM(lijst[[#This Row],[Originele prijs]]*lijst[[#This Row],[% factor]]),lijst[[#This Row],[Originele prijs]])","v":0},null,"zekering"]
["diff.2P 40a 300mA","serr9r04240",{"$f":"IF(AND(lijst[[#This Row],[Originele prijs]]>0,lijst[[#This Row],[% factor]]>0),SUM(lijst[[#This Row],[Originele prijs]]*lijst[[#This Row],[% factor]]),lijst[[#This Row],[Originele prijs]])","v":0},null,"zekering"]
["diff.2P 40a 30mA","serr9r01240",{"$f":"IF(AND(lijst[[#This Row],[Originele prijs]]>0,lijst[[#This Row],[% factor]]>0),SUM(lijst[[#This Row],[Originele prijs]]*lijst[[#This Row],[% factor]]),lijst[[#This Row],[Originele prijs]])","v":0},null,"zekering"]
["diff.4p 40a 300mA","serr9R04440",{"$f":"IF(AND(lijst[[#This Row],[Originele prijs]]>0,lijst[[#This Row],[% factor]]>0),SUM(lijst[[#This Row],[Originele prijs]]*lijst[[#This Row],[% factor]]),lijst[[#This Row],[Originele prijs]])","v":0},null,"zekering"]
["diff.4p 40a 30mA","SERR9R01440",{"$f":"IF(AND(lijst[[#This Row],[Originele prijs]]>0,lijst[[#This Row],[% factor]]>0),SUM(lijst[[#This Row],[Originele prijs]]*lijst[[#This Row],[% factor]]),lijst[[#This Row],[Originele prijs]])","v":0},null,"zekering"]
["DLP zw einddeksel 50x80","LEG075755",{"$f":"IF(AND(lijst[[#This Row],[Originele prijs]]>0,lijst[[#This Row],[% factor]]>0),SUM(lijst[[#This Row],[Originele prijs]]*lijst[[#This Row],[% factor]]),lijst[[#This Row],[Originele prijs]])","v":0},null,"DLP goot zwart"]
["DLP zw gootafdichting 50x80/130","LEG075780",{"$f":"IF(AND(lijst[[#This Row],[Originele prijs]]>0,lijst[[#This Row],[% factor]]>0),SUM(lijst[[#This Row],[Originele prijs]]*lijst[[#This Row],[% factor]]),lijst[[#This Row],[Originele prijs]])","v":0},null,"DLP goot zwart"]
["DLP zw klik-in 50x80x2m","LEG075750",{"$f":"IF(AND(lijst[[#This Row],[Originele prijs]]>0,lijst[[#This Row],[% factor]]>0),SUM(lijst[[#This Row],[Originele prijs]]*lijst[[#This Row],[% factor]]),lijst[[#This Row],[Originele prijs]])","v":0},null,"DLP goot zwart"]
["DLP zw mosaic cdoos2x2P+A zwart","LEG077182",{"$f":"IF(AND(lijst[[#This Row],[Originele prijs]]>0,lijst[[#This Row],[% factor]]>0),SUM(lijst[[#This Row],[Originele prijs]]*lijst[[#This Row],[% factor]]),lijst[[#This Row],[Originele prijs]])","v":0},null,"DLP goot zwart"]
["DLP zw platte hoek","LEG075770",{"$f":"IF(AND(lijst[[#This Row],[Originele prijs]]>0,lijst[[#This Row],[% factor]]>0),SUM(lijst[[#This Row],[Originele prijs]]*lijst[[#This Row],[% factor]]),lijst[[#This Row],[Originele prijs]])","v":0},null,"DLP goot zwart"]
["DLP zw RJ45 CAT6 FTP 2mod","LEG079485",{"$f":"IF(AND(lijst[[#This Row],[Originele prijs]]>0,lijst[[#This Row],[% factor]]>0),SUM(lijst[[#This Row],[Originele prijs]]*lijst[[#This Row],[% factor]]),lijst[[#This Row],[Originele prijs]])","v":0},null,"DLP goot zwart"]
["DLP zw wisselsch.easyled-10AX","LEG079111L",{"$f":"IF(AND(lijst[[#This Row],[Originele prijs]]>0,lijst[[#This Row],[% factor]]>0),SUM(lijst[[#This Row],[Originele prijs]]*lijst[[#This Row],[% factor]]),lijst[[#This Row],[Originele prijs]])","v":0},null,"DLP goot zwart"]
["elflex 3G2,5 d16","FLXREXFLEX5G25D16",{"$f":"IF(AND(lijst[[#This Row],[Originele prijs]]>0,lijst[[#This Row],[% factor]]>0),SUM(lijst[[#This Row],[Originele prijs]]*lijst[[#This Row],[% factor]]),lijst[[#This Row],[Originele prijs]])","v":0},null,"bekabeling",null,null,100]
["elflex 3G2,5 d20","flxrexflex3g25",{"$f":"IF(AND(lijst[[#This Row],[Originele prijs]]>0,lijst[[#This Row],[% factor]]>0),SUM(lijst[[#This Row],[Originele prijs]]*lijst[[#This Row],[% factor]]),lijst[[#This Row],[Originele prijs]])","v":0},null,"bekabeling",null,null,100]
["enkelpolige 1-K inbouw RF-ontvanger","NIK05331",{"$f":"IF(AND(lijst[[#This Row],[Originele prijs]]>0,lijst[[#This Row],[% factor]]>0),SUM(lijst[[#This Row],[Originele prijs]]*lijst[[#This Row],[% factor]]),lijst[[#This Row],[Originele prijs]])","v":0},null,"alarm"]
["F conn.push on PUSH ON","HIR695002566",{"$f":"IF(AND(lijst[[#This Row],[Originele prijs]]>0,lijst[[#This Row],[% factor]]>0),SUM(lijst[[#This Row],[Originele prijs]]*lijst[[#This Row],[% factor]]),lijst[[#This Row],[Originele prijs]])","v":0},null,"tv",null,null,100]
["FAAC KCTL LED - kunststof code","FAC12204730050",{"$f":"IF(AND(lijst[[#This Row],[Originele prijs]]>0,lijst[[#This Row],[% factor]]>0),SUM(lijst[[#This Row],[Originele prijs]]*lijst[[#This Row],[% factor]]),lijst[[#This Row],[Originele prijs]])","v":0},null,"alarm"]
["hars 3M scotchcast 665ml","MM32123D",{"$f":"IF(AND(lijst[[#This Row],[Originele prijs]]>0,lijst[[#This Row],[% factor]]>0),SUM(lijst[[#This Row],[Originele prijs]]*lijst[[#This Row],[% factor]]),lijst[[#This Row],[Originele prijs]])","v":0},null,"installatiemateriaal"]
["hydro doos 2-voudig 3ing","NIK70084212",{"$f":"IF(AND(lijst[[#This Row],[Originele prijs]]>0,lijst[[#This Row],[% factor]]>0),SUM(lijst[[#This Row],[Originele prijs]]*lijst[[#This Row],[% factor]]),lijst[[#This Row],[Originele prijs]])","v":0},null,"schakelaar spatwaterdicht"]
["hydro doos enkel - wurgnippel","NIK70083101",{"$f":"IF(AND(lijst[[#This Row],[Originele prijs]]>0,lijst[[#This Row],[% factor]]>0),SUM(lijst[[#This Row],[Originele prijs]]*lijst[[#This Row],[% factor]]),lijst[[#This Row],[Originele prijs]])","v":0},null,"schakelaar spatwaterdicht"]
["IEC push on conn Fem.haaks","HIR947548500",{"$f":"IF(AND(lijst[[#This Row],[Originele prijs]]>0,lijst[[#This Row],[% factor]]>0),SUM(lijst[[#This Row],[Originele prijs]]*lijst[[#This Row],[% factor]]),lijst[[#This Row],[Originele prijs]])","v":0},null,"tv"]
["IEC push on conn male haaks","HIR947544500",{"$f":"IF(AND(lijst[[#This Row],[Originele prijs]]>0,lijst[[#This Row],[% factor]]>0),SUM(lijst[[#This Row],[Originele prijs]]*lijst[[#This Row],[% factor]]),lijst[[#This Row],[Originele prijs]])","v":0},null,"tv"]
["inst.draad soepel blauw H07V-K 10mm°","BLVOBS10BLRAL5010R100",{"$f":"IF(AND(lijst[[#This Row],[Originele prijs]]>0,lijst[[#This Row],[% factor]]>0),SUM(lijst[[#This Row],[Originele prijs]]*lijst[[#This Row],[% factor]]),lijst[[#This Row],[Originele prijs]])","v":0},null,"bekabeling",null,null,100]
["inst.draad soepel blauw H07V-K 16mm°","CBLVOBS16BLRAL5010R100",{"$f":"IF(AND(lijst[[#This Row],[Originele prijs]]>0,lijst[[#This Row],[% factor]]>0),SUM(lijst[[#This Row],[Originele prijs]]*lijst[[#This Row],[% factor]]),lijst[[#This Row],[Originele prijs]])","v":0},null,"bekabeling",null,null,100]
["inst.draad soepel blauw H07V-K 6mm°","CBLVOBS6BLRAL5010R100",{"$f":"IF(AND(lijst[[#This Row],[Originele prijs]]>0,lijst[[#This Row],[% factor]]>0),SUM(lijst[[#This Row],[Originele prijs]]*lijst[[#This Row],[% factor]]),lijst[[#This Row],[Originele prijs]])","v":0},null,"bekabeling",null,null,100]
["inst.draad soepel g/gr H07V-K 10mm°","CBLVOBS10GYR100",{"$f":"IF(AND(lijst[[#This Row],[Originele prijs]]>0,lijst[[#This Row],[% factor]]>0),SUM(lijst[[#This Row],[Originele prijs]]*lijst[[#This Row],[% factor]]),lijst[[#This Row],[Originele prijs]])","v":0},null,"bekabeling",null,null,100]
["inst.draad soepel zwart H07V-K 10mm°","CBLVOBS10BKR100EUP",{"$f":"IF(AND(lijst[[#This Row],[Originele prijs]]>0,lijst[[#This Row],[% factor]]>0),SUM(lijst[[#This Row],[Originele prijs]]*lijst[[#This Row],[% factor]]),lijst[[#This Row],[Originele prijs]])","v":0},null,"bekabeling",null,null,100]
["inst.draad soepel zwart H07V-K 16mm°","CBLVOBS16BKR100",{"$f":"IF(AND(lijst[[#This Row],[Originele prijs]]>0,lijst[[#This Row],[% factor]]>0),SUM(lijst[[#This Row],[Originele prijs]]*lijst[[#This Row],[% factor]]),lijst[[#This Row],[Originele prijs]])","v":0},null,"bekabeling",null,null,100]
["inst.draad soepel zwart H07V-K 6mm°","CBLVOBS6BKR100",{"$f":"IF(AND(lijst[[#This Row],[Originele prijs]]>0,lijst[[#This Row],[% factor]]>0),SUM(lijst[[#This Row],[Originele prijs]]*lijst[[#This Row],[% factor]]),lijst[[#This Row],[Originele prijs]])","v":0},null,"bekabeling",null,null,100]
["inst.draad stijf blauw H07V-K 2,5mm°","CBLVOB2,5BLR100",{"$f":"IF(AND(lijst[[#This Row],[Originele prijs]]>0,lijst[[#This Row],[% factor]]>0),SUM(lijst[[#This Row],[Originele prijs]]*lijst[[#This Row],[% factor]]),lijst[[#This Row],[Originele prijs]])","v":0},null,"bekabeling",null,null,100]
["inst.draad stijf g/gr H07V-K 2,5mm°","CBLVOB2,5GYR100",{"$f":"IF(AND(lijst[[#This Row],[Originele prijs]]>0,lijst[[#This Row],[% factor]]>0),SUM(lijst[[#This Row],[Originele prijs]]*lijst[[#This Row],[% factor]]),lijst[[#This Row],[Originele prijs]])","v":0},null,"bekabeling",null,null,100]
["inst.draad stijf g/gr H07V-K 6mm°","CBLVOB6GYR100",{"$f":"IF(AND(lijst[[#This Row],[Originele prijs]]>0,lijst[[#This Row],[% factor]]>0),SUM(lijst[[#This Row],[Originele prijs]]*lijst[[#This Row],[% factor]]),lijst[[#This Row],[Originele prijs]])","v":0},null,"bekabeling",null,null,100]
["inst.draad stijf zwart H07V-K 2,5mm°","CBLVOB2,5BKR100",{"$f":"IF(AND(lijst[[#This Row],[Originele prijs]]>0,lijst[[#This Row],[% factor]]>0),SUM(lijst[[#This Row],[Originele prijs]]*lijst[[#This Row],[% factor]]),lijst[[#This Row],[Originele prijs]])","v":0},null,"bekabeling",null,null,100]
["invoertul M20 voor buis 16/20","ABBFOBCGM2",{"$f":"IF(AND(lijst[[#This Row],[Originele prijs]]>0,lijst[[#This Row],[% factor]]>0),SUM(lijst[[#This Row],[Originele prijs]]*lijst[[#This Row],[% factor]]),lijst[[#This Row],[Originele prijs]])","v":0},null,"schakelaar spatwaterdicht"]
["kabelaansluitklem met tanden","LEG404906",{"$f":"IF(AND(lijst[[#This Row],[Originele prijs]]>0,lijst[[#This Row],[% factor]]>0),SUM(lijst[[#This Row],[Originele prijs]]*lijst[[#This Row],[% factor]]),lijst[[#This Row],[Originele prijs]])","v":0},null,"zekeringkast"]
["klein materiaal","kl.mat.",{"$f":"IF(AND(lijst[[#This Row],[Originele prijs]]>0,lijst[[#This Row],[% factor]]>0),SUM(lijst[[#This Row],[Originele prijs]]*lijst[[#This Row],[% factor]]),lijst[[#This Row],[Originele prijs]])","v":0},null,"materiaal"]
["klopboor SDS+ 16x600","BIZ700636",{"$f":"IF(AND(lijst[[#This Row],[Originele prijs]]>0,lijst[[#This Row],[% factor]]>0),SUM(lijst[[#This Row],[Originele prijs]]*lijst[[#This Row],[% factor]]),lijst[[#This Row],[Originele prijs]])","v":0},null,"gereedschap toebehoren"]
["klopboor SDS+ 20x600","BIZ700642",{"$f":"IF(AND(lijst[[#This Row],[Originele prijs]]>0,lijst[[#This Row],[% factor]]>0),SUM(lijst[[#This Row],[Originele prijs]]*lijst[[#This Row],[% factor]]),lijst[[#This Row],[Originele prijs]])","v":0},null,"gereedschap toebehoren"]
["lange klauwen","NIK17071003",{"$f":"IF(AND(lijst[[#This Row],[Originele prijs]]>0,lijst[[#This Row],[% factor]]>0),SUM(lijst[[#This Row],[Originele prijs]]*lijst[[#This Row],[% factor]]),lijst[[#This Row],[Originele prijs]])","v":0},null,"schakelaar",null,null,20]
["led baten 120cm 40W 3000K","AR001970",{"$f":"IF(AND(lijst[[#This Row],[Originele prijs]]>0,lijst[[#This Row],[% factor]]>0),SUM(lijst[[#This Row],[Originele prijs]]*lijst[[#This Row],[% factor]]),lijst[[#This Row],[Originele prijs]])","v":0},null,"verlichting"]
["led baten 90cm 30W 6000K","AR184469",{"$f":"IF(AND(lijst[[#This Row],[Originele prijs]]>0,lijst[[#This Row],[% factor]]>0),SUM(lijst[[#This Row],[Originele prijs]]*lijst[[#This Row],[% factor]]),lijst[[#This Row],[Originele prijs]])","v":0},null,"verlichting"]
["led breedstraler + sensor 50W 4000/6400K","AR187422",{"$f":"IF(AND(lijst[[#This Row],[Originele prijs]]>0,lijst[[#This Row],[% factor]]>0),SUM(lijst[[#This Row],[Originele prijs]]*lijst[[#This Row],[% factor]]),lijst[[#This Row],[Originele prijs]])","v":0},null,"verlichting"]
["led lichtslang 10M 3000K","AR184537-10",{"$f":"IF(AND(lijst[[#This Row],[Originele prijs]]>0,lijst[[#This Row],[% factor]]>0),SUM(lijst[[#This Row],[Originele prijs]]*lijst[[#This Row],[% factor]]),lijst[[#This Row],[Originele prijs]])","v":0},null,"verlichting"]
["led RGB-lichtslang","AR184568-10",{"$f":"IF(AND(lijst[[#This Row],[Originele prijs]]>0,lijst[[#This Row],[% factor]]>0),SUM(lijst[[#This Row],[Originele prijs]]*lijst[[#This Row],[% factor]]),lijst[[#This Row],[Originele prijs]])","v":0},null,"verlichting"]
["led RGB-lichtslang radio bediening","AR184568-10",{"$f":"IF(AND(lijst[[#This Row],[Originele prijs]]>0,lijst[[#This Row],[% factor]]>0),SUM(lijst[[#This Row],[Originele prijs]]*lijst[[#This Row],[% factor]]),lijst[[#This Row],[Originele prijs]])","v":0},null,"verlichting"]
["magn.opbouwcontact - PVC","TIC3511",{"$f":"IF(AND(lijst[[#This Row],[Originele prijs]]>0,lijst[[#This Row],[% factor]]>0),SUM(lijst[[#This Row],[Originele prijs]]*lijst[[#This Row],[% factor]]),lijst[[#This Row],[Originele prijs]])","v":0},null,"alarm"]
["Makita haakse slijper 800W 125mm","9558HNRGZ",{"$f":"IF(AND(lijst[[#This Row],[Originele prijs]]>0,lijst[[#This Row],[% factor]]>0),SUM(lijst[[#This Row],[Originele prijs]]*lijst[[#This Row],[% factor]]),lijst[[#This Row],[Originele prijs]])","v":0},null,"Elek. Gereedschap",null,0.9]
["mini RF-handzender 1K en 1knop","NIK05311",{"$f":"IF(AND(lijst[[#This Row],[Originele prijs]]>0,lijst[[#This Row],[% factor]]>0),SUM(lijst[[#This Row],[Originele prijs]]*lijst[[#This Row],[% factor]]),lijst[[#This Row],[Originele prijs]])","v":0},null,"alarm"]
["ninofix waterd. Aansl. M20 buis 16/20","FLXPREFLEXNINOFIXM2020MM",{"$f":"IF(AND(lijst[[#This Row],[Originele prijs]]>0,lijst[[#This Row],[% factor]]>0),SUM(lijst[[#This Row],[Originele prijs]]*lijst[[#This Row],[% factor]]),lijst[[#This Row],[Originele prijs]])","v":0},null,"schakelaar spatwaterdicht"]
["nylon plug 6x32","GUI565386",{"$f":"IF(AND(lijst[[#This Row],[Originele prijs]]>0,lijst[[#This Row],[% factor]]>0),SUM(lijst[[#This Row],[Originele prijs]]*lijst[[#This Row],[% factor]]),lijst[[#This Row],[Originele prijs]])","v":0},null,"bevestiging"]
["opbouwdoos 1x 1xM20","NIK70084101",{"$f":"IF(AND(lijst[[#This Row],[Originele prijs]]>0,lijst[[#This Row],[% factor]]>0),SUM(lijst[[#This Row],[Originele prijs]]*lijst[[#This Row],[% factor]]),lijst[[#This Row],[Originele prijs]])","v":0},null,"schakelaar spatwaterdicht"]
["opbouwdoos enkel 2xM20","NIK70084102 ",{"$f":"IF(AND(lijst[[#This Row],[Originele prijs]]>0,lijst[[#This Row],[% factor]]>0),SUM(lijst[[#This Row],[Originele prijs]]*lijst[[#This Row],[% factor]]),lijst[[#This Row],[Originele prijs]])","v":0},null,"schakelaar spatwaterdicht"]
["overbr.rail 2P 28x2 10mm°","ABBBVS25610",{"$f":"IF(AND(lijst[[#This Row],[Originele prijs]]>0,lijst[[#This Row],[% factor]]>0),SUM(lijst[[#This Row],[Originele prijs]]*lijst[[#This Row],[% factor]]),lijst[[#This Row],[Originele prijs]])","v":0},null,"zekeringkast"]
["patch SN C5E UTP pvc 3m grijs","GGMCAT5E3M",{"$f":"IF(AND(lijst[[#This Row],[Originele prijs]]>0,lijst[[#This Row],[% factor]]>0),SUM(lijst[[#This Row],[Originele prijs]]*lijst[[#This Row],[% factor]]),lijst[[#This Row],[Originele prijs]])","v":0},null,"internet"]
["PU schuim niet uitzettend","TEC7 PUFOAM",{"$f":"IF(AND(lijst[[#This Row],[Originele prijs]]>0,lijst[[#This Row],[% factor]]>0),SUM(lijst[[#This Row],[Originele prijs]]*lijst[[#This Row],[% factor]]),lijst[[#This Row],[Originele prijs]])","v":0},null,"materiaal"]
["PVC buis lichtgrijs RAL7035 M20","BPP094112",{"$f":"IF(AND(lijst[[#This Row],[Originele prijs]]>0,lijst[[#This Row],[% factor]]>0),SUM(lijst[[#This Row],[Originele prijs]]*lijst[[#This Row],[% factor]]),lijst[[#This Row],[Originele prijs]])","v":0},null,"materiaal"]
["sch. 2x wissel","NIK17002605",{"$f":"IF(AND(lijst[[#This Row],[Originele prijs]]>0,lijst[[#This Row],[% factor]]>0),SUM(lijst[[#This Row],[Originele prijs]]*lijst[[#This Row],[% factor]]),lijst[[#This Row],[Originele prijs]])","v":0},null,"schakelaar"]
["sirene electr 230VAC 50W 105DB","LEG041539",{"$f":"IF(AND(lijst[[#This Row],[Originele prijs]]>0,lijst[[#This Row],[% factor]]>0),SUM(lijst[[#This Row],[Originele prijs]]*lijst[[#This Row],[% factor]]),lijst[[#This Row],[Originele prijs]])","v":0},null,"alarm"]
["Snelspankop voor haakse slijper","SDS clic-moer",{"$f":"IF(AND(lijst[[#This Row],[Originele prijs]]>0,lijst[[#This Row],[% factor]]>0),SUM(lijst[[#This Row],[Originele prijs]]*lijst[[#This Row],[% factor]]),lijst[[#This Row],[Originele prijs]])","v":0},null,"Elek. Gereedschap"]
["sokkel drukknopdimmer 2-100W 3-draads","NIK31002800",{"$f":"IF(AND(lijst[[#This Row],[Originele prijs]]>0,lijst[[#This Row],[% factor]]>0),SUM(lijst[[#This Row],[Originele prijs]]*lijst[[#This Row],[% factor]]),lijst[[#This Row],[Originele prijs]])","v":0},null,"schakelaar dimmer"]
["spaanpl.schroef 4x35","BIZ770008",{"$f":"IF(AND(lijst[[#This Row],[Originele prijs]]>0,lijst[[#This Row],[% factor]]>0),SUM(lijst[[#This Row],[Originele prijs]]*lijst[[#This Row],[% factor]]),lijst[[#This Row],[Originele prijs]])","v":0},null,"bevestiging",null,null,100]
["switch 8 x 10 100 1000 metal","DLKDGS108",{"$f":"IF(AND(lijst[[#This Row],[Originele prijs]]>0,lijst[[#This Row],[% factor]]>0),SUM(lijst[[#This Row],[Originele prijs]]*lijst[[#This Row],[% factor]]),lijst[[#This Row],[Originele prijs]])","v":0},null,"tv"]
["switch TP-link (4ports)","TL-SG105",{"$f":"IF(AND(lijst[[#This Row],[Originele prijs]]>0,lijst[[#This Row],[% factor]]>0),SUM(lijst[[#This Row],[Originele prijs]]*lijst[[#This Row],[% factor]]),lijst[[#This Row],[Originele prijs]])","v":0},null,"internet"]
["tegenmoer PVC M20 lichtgrijs","OBO2049538",{"$f":"IF(AND(lijst[[#This Row],[Originele prijs]]>0,lijst[[#This Row],[% factor]]>0),SUM(lijst[[#This Row],[Originele prijs]]*lijst[[#This Row],[% factor]]),lijst[[#This Row],[Originele prijs]])","v":0},null,"installatiemateriaal"]
["treksch.wissel compl. Cream","NIK10063600",{"$f":"IF(AND(lijst[[#This Row],[Originele prijs]]>0,lijst[[#This Row],[% factor]]>0),SUM(lijst[[#This Row],[Originele prijs]]*lijst[[#This Row],[% factor]]),lijst[[#This Row],[Originele prijs]])","v":0},null,"schakelaar"]
["UNIV.DRUKKNOPDIMMER 3 - 300W, 2-draads","NIK31002900",{"$f":"IF(AND(lijst[[#This Row],[Originele prijs]]>0,lijst[[#This Row],[% factor]]>0),SUM(lijst[[#This Row],[Originele prijs]]*lijst[[#This Row],[% factor]]),lijst[[#This Row],[Originele prijs]])","v":0},null,"schakelaar dimmer"]
["univ.klem 3x0,2-4mm transp","WAG221413",{"$f":"IF(AND(lijst[[#This Row],[Originele prijs]]>0,lijst[[#This Row],[% factor]]>0),SUM(lijst[[#This Row],[Originele prijs]]*lijst[[#This Row],[% factor]]),lijst[[#This Row],[Originele prijs]])","v":0},null,"verbindingen",null,null,50]
["univ.klem 3x6mm grijs","WAG221613",{"$f":"IF(AND(lijst[[#This Row],[Originele prijs]]>0,lijst[[#This Row],[% factor]]>0),SUM(lijst[[#This Row],[Originele prijs]]*lijst[[#This Row],[% factor]]),lijst[[#This Row],[Originele prijs]])","v":0},null,"verbindingen"]
["univ.klem 5x0,2-4mm transp","WAG221415",{"$f":"IF(AND(lijst[[#This Row],[Originele prijs]]>0,lijst[[#This Row],[% factor]]>0),SUM(lijst[[#This Row],[Originele prijs]]*lijst[[#This Row],[% factor]]),lijst[[#This Row],[Originele prijs]])","v":0},null,"verbindingen",null,null,25]
["usb-lader afw. Cream","NIK10068001",{"$f":"IF(AND(lijst[[#This Row],[Originele prijs]]>0,lijst[[#This Row],[% factor]]>0),SUM(lijst[[#This Row],[Originele prijs]]*lijst[[#This Row],[% factor]]),lijst[[#This Row],[Originele prijs]])","v":0},null,"schakelaar afwerking"]
["usb-lader wit","NIK42000510",{"$f":"IF(AND(lijst[[#This Row],[Originele prijs]]>0,lijst[[#This Row],[% factor]]>0),SUM(lijst[[#This Row],[Originele prijs]]*lijst[[#This Row],[% factor]]),lijst[[#This Row],[Originele prijs]])","v":0},null,"schakelaar"]
["vega verdeelkast 18mod.","hagvb118r",{"$f":"IF(AND(lijst[[#This Row],[Originele prijs]]>0,lijst[[#This Row],[% factor]]>0),SUM(lijst[[#This Row],[Originele prijs]]*lijst[[#This Row],[% factor]]),lijst[[#This Row],[Originele prijs]])","v":0},null,"zekeringkast"]
["verdeelkast 52mod","haggd413u",{"$f":"IF(AND(lijst[[#This Row],[Originele prijs]]>0,lijst[[#This Row],[% factor]]>0),SUM(lijst[[#This Row],[Originele prijs]]*lijst[[#This Row],[% factor]]),lijst[[#This Row],[Originele prijs]])","v":0},null,"zekeringkast"]
["verdeelkast deur voor haggd413u","haggp413p",{"$f":"IF(AND(lijst[[#This Row],[Originele prijs]]>0,lijst[[#This Row],[% factor]]>0),SUM(lijst[[#This Row],[Originele prijs]]*lijst[[#This Row],[% factor]]),lijst[[#This Row],[Originele prijs]])","v":0},null,"zekeringkast"]
["verdeelkast vector IP65 8+2M","HAGVE110M",{"$f":"IF(AND(lijst[[#This Row],[Originele prijs]]>0,lijst[[#This Row],[% factor]]>0),SUM(lijst[[#This Row],[Originele prijs]]*lijst[[#This Row],[% factor]]),lijst[[#This Row],[Originele prijs]])","v":0},null,"zekeringkast"]
["verdeelkast vega 18mod.","hagvb118r",{"$f":"IF(AND(lijst[[#This Row],[Originele prijs]]>0,lijst[[#This Row],[% factor]]>0),SUM(lijst[[#This Row],[Originele prijs]]*lijst[[#This Row],[% factor]]),lijst[[#This Row],[Originele prijs]])","v":0},null,"zekeringkast"]
["verl.eenheid amber ","NIK17037423",{"$f":"IF(AND(lijst[[#This Row],[Originele prijs]]>0,lijst[[#This Row],[% factor]]>0),SUM(lijst[[#This Row],[Originele prijs]]*lijst[[#This Row],[% factor]]),lijst[[#This Row],[Originele prijs]])","v":0},null,"schakelaar"]
["verl.eenheid amber voor steekklem","NIK17077323",{"$f":"IF(AND(lijst[[#This Row],[Originele prijs]]>0,lijst[[#This Row],[% factor]]>0),SUM(lijst[[#This Row],[Originele prijs]]*lijst[[#This Row],[% factor]]),lijst[[#This Row],[Originele prijs]])","v":0},null,"schakelaar"]
["verl.eenheid blauw","NIK17037223",{"$f":"IF(AND(lijst[[#This Row],[Originele prijs]]>0,lijst[[#This Row],[% factor]]>0),SUM(lijst[[#This Row],[Originele prijs]]*lijst[[#This Row],[% factor]]),lijst[[#This Row],[Originele prijs]])","v":0},null,"schakelaar"]
["verl.eenheid blauw voor steekklem","NIK17077123",{"$f":"IF(AND(lijst[[#This Row],[Originele prijs]]>0,lijst[[#This Row],[% factor]]>0),SUM(lijst[[#This Row],[Originele prijs]]*lijst[[#This Row],[% factor]]),lijst[[#This Row],[Originele prijs]])","v":0},null,"schakelaar"]
["verl.eenheid groen","NIK17037823",{"$f":"IF(AND(lijst[[#This Row],[Originele prijs]]>0,lijst[[#This Row],[% factor]]>0),SUM(lijst[[#This Row],[Originele prijs]]*lijst[[#This Row],[% factor]]),lijst[[#This Row],[Originele prijs]])","v":0},null,"schakelaar"]
["verl.eenheid rood ","NIK17037623",{"$f":"IF(AND(lijst[[#This Row],[Originele prijs]]>0,lijst[[#This Row],[% factor]]>0),SUM(lijst[[#This Row],[Originele prijs]]*lijst[[#This Row],[% factor]]),lijst[[#This Row],[Originele prijs]])","v":0},null,"schakelaar"]
["verl.eenheid wit ","NIK17037923",{"$f":"IF(AND(lijst[[#This Row],[Originele prijs]]>0,lijst[[#This Row],[% factor]]>0),SUM(lijst[[#This Row],[Originele prijs]]*lijst[[#This Row],[% factor]]),lijst[[#This Row],[Originele prijs]])","v":0},null,"schakelaar"]
["verl.eenheid wit voor steekklem","NIK17077023",{"$f":"IF(AND(lijst[[#This Row],[Originele prijs]]>0,lijst[[#This Row],[% factor]]>0),SUM(lijst[[#This Row],[Originele prijs]]*lijst[[#This Row],[% factor]]),lijst[[#This Row],[Originele prijs]])","v":0},null,"schakelaar"]
["verst. 1ing 5uitg 5-862Mhz","HIR695021020",{"$f":"IF(AND(lijst[[#This Row],[Originele prijs]]>0,lijst[[#This Row],[% factor]]>0),SUM(lijst[[#This Row],[Originele prijs]]*lijst[[#This Row],[% factor]]),lijst[[#This Row],[Originele prijs]])","v":0},null,"internet"]
["WCD 2P+A+KV","NIK70036600",{"$f":"IF(AND(lijst[[#This Row],[Originele prijs]]>0,lijst[[#This Row],[% factor]]>0),SUM(lijst[[#This Row],[Originele prijs]]*lijst[[#This Row],[% factor]]),lijst[[#This Row],[Originele prijs]])","v":0},null,"schakelaar spatwaterdicht"]
["wcd pen+veiligh cream 21D","NIK10066100",{"$f":"IF(AND(lijst[[#This Row],[Originele prijs]]>0,lijst[[#This Row],[% factor]]>0),SUM(lijst[[#This Row],[Originele prijs]]*lijst[[#This Row],[% factor]]),lijst[[#This Row],[Originele prijs]])","v":0},null,"schakelaar"]
["wcd pen+veiligh cream 21D steek","NIK10166105",{"$f":"IF(AND(lijst[[#This Row],[Originele prijs]]>0,lijst[[#This Row],[% factor]]>0),SUM(lijst[[#This Row],[Originele prijs]]*lijst[[#This Row],[% factor]]),lijst[[#This Row],[Originele prijs]])","v":0},null,"schakelaar"]
["wcd pen+veiligh cream 28,5D","NIK10066600",{"$f":"IF(AND(lijst[[#This Row],[Originele prijs]]>0,lijst[[#This Row],[% factor]]>0),SUM(lijst[[#This Row],[Originele prijs]]*lijst[[#This Row],[% factor]]),lijst[[#This Row],[Originele prijs]])","v":0},null,"schakelaar"]
["wcd pen+veiligh cream 28,5D steek","NIK10066605",{"$f":"IF(AND(lijst[[#This Row],[Originele prijs]]>0,lijst[[#This Row],[% factor]]>0),SUM(lijst[[#This Row],[Originele prijs]]*lijst[[#This Row],[% factor]]),lijst[[#This Row],[Originele prijs]])","v":0},null,"schakelaar"]
["ZB eindstuk kamgeleider 2P","FTGE70002060",{"$f":"IF(AND(lijst[[#This Row],[Originele prijs]]>0,lijst[[#This Row],[% factor]]>0),SUM(lijst[[#This Row],[Originele prijs]]*lijst[[#This Row],[% factor]]),lijst[[#This Row],[Originele prijs]])","v":0},null,"zekeringkast"]
["ZB eindstuk kamgeleider 4P","FTGE70004062",{"$f":"IF(AND(lijst[[#This Row],[Originele prijs]]>0,lijst[[#This Row],[% factor]]>0),SUM(lijst[[#This Row],[Originele prijs]]*lijst[[#This Row],[% factor]]),lijst[[#This Row],[Originele prijs]])","v":0},null,"zekeringkast"]
[null,null,{"$f":"IF(AND(lijst[[#This Row],[Originele prijs]]>0,lijst[[#This Row],[% factor]]>0),SUM(lijst[[#This Row],[Originele prijs]]*lijst[[#This Row],[% factor]]),lijst[[#This Row],[Originele prijs]])","v":0}]
[null,null,{"$f":"IF(AND(lijst[[#This Row],[Originele prijs]]>0,lijst[[#This Row],[% factor]]>0),SUM(lijst[[#This Row],[Originele prijs]]*lijst[[#This Row],[% factor]]),lijst[[#This Row],[Originele prijs]])","v":0}]
[null,null,{"$f":"IF(AND(lijst[[#This Row],[Originele prijs]]>0,lijst[[#This Row],[% factor]]>0),SUM(lijst[[#This Row],[Originele prijs]]*lijst[[#This Row],[% factor]]),lijst[[#This Row],[Originele prijs]])","v":0}]
[null,null,{"$f":"IF(AND(lijst[[#This Row],[Originele prijs]]>0,lijst[[#This Row],[% factor]]>0),SUM(lijst[[#This Row],[Originele prijs]]*lijst[[#This Row],[% factor]]),lijst[[#This Row],[Originele prijs]])","v":0}]
[null,null,{"$f":"IF(AND(lijst[[#This Row],[Originele prijs]]>0,lijst[[#This Row],[% factor]]>0),SUM(lijst[[#This Row],[Originele prijs]]*lijst[[#This Row],[% factor]]),lijst[[#This Row],[Originele prijs]])","v":0}]
[null,null,{"$f":"IF(AND(lijst[[#This Row],[Originele prijs]]>0,lijst[[#This Row],[% factor]]>0),SUM(lijst[[#This Row],[Originele prijs]]*lijst[[#This Row],[% factor]]),lijst[[#This Row],[Originele prijs]])","v":0}]
[null,null,{"$f":"IF(AND(lijst[[#This Row],[Originele prijs]]>0,lijst[[#This Row],[% factor]]>0),SUM(lijst[[#This Row],[Originele prijs]]*lijst[[#This Row],[% factor]]),lijst[[#This Row],[Originele prijs]])","v":0}]
[null,null,{"$f":"IF(AND(lijst[[#This Row],[Originele prijs]]>0,lijst[[#This Row],[% factor]]>0),SUM(lijst[[#This Row],[Originele prijs]]*lijst[[#This Row],[% factor]]),lijst[[#This Row],[Originele prijs]])","v":0}]
[null,null,{"$f":"IF(AND(lijst[[#This Row],[Originele prijs]]>0,lijst[[#This Row],[% factor]]>0),SUM(lijst[[#This Row],[Originele prijs]]*lijst[[#This Row],[% factor]]),lijst[[#This Row],[Originele prijs]])","v":0}]
[null,null,{"$f":"IF(AND(lijst[[#This Row],[Originele prijs]]>0,lijst[[#This Row],[% factor]]>0),SUM(lijst[[#This Row],[Originele prijs]]*lijst[[#This Row],[% factor]]),lijst[[#This Row],[Originele prijs]])","v":0}]
[null,null,{"$f":"IF(AND(lijst[[#This Row],[Originele prijs]]>0,lijst[[#This Row],[% factor]]>0),SUM(lijst[[#This Row],[Originele prijs]]*lijst[[#This Row],[% factor]]),lijst[[#This Row],[Originele prijs]])","v":0}]
[null,null,{"$f":"IF(AND(lijst[[#This Row],[Originele prijs]]>0,lijst[[#This Row],[% factor]]>0),SUM(lijst[[#This Row],[Originele prijs]]*lijst[[#This Row],[% factor]]),lijst[[#This Row],[Originele prijs]])","v":0}]
[null,null,{"$f":"IF(AND(lijst[[#This Row],[Originele prijs]]>0,lijst[[#This Row],[% factor]]>0),SUM(lijst[[#This Row],[Originele prijs]]*lijst[[#This Row],[% factor]]),lijst[[#This Row],[Originele prijs]])","v":0}]
[null,null,{"$f":"IF(AND(lijst[[#This Row],[Originele prijs]]>0,lijst[[#This Row],[% factor]]>0),SUM(lijst[[#This Row],[Originele prijs]]*lijst[[#This Row],[% factor]]),lijst[[#This Row],[Originele prijs]])","v":0}]
[null,null,{"$f":"IF(AND(lijst[[#This Row],[Originele prijs]]>0,lijst[[#This Row],[% factor]]>0),SUM(lijst[[#This Row],[Originele prijs]]*lijst[[#This Row],[% factor]]),lijst[[#This Row],[Originele prijs]])","v":0}]
[null,null,{"$f":"IF(AND(lijst[[#This Row],[Originele prijs]]>0,lijst[[#This Row],[% factor]]>0),SUM(lijst[[#This Row],[Originele prijs]]*lijst[[#This Row],[% factor]]),lijst[[#This Row],[Originele prijs]])","v":0}]
[null,null,{"$f":"IF(AND(lijst[[#This Row],[Originele prijs]]>0,lijst[[#This Row],[% factor]]>0),SUM(lijst[[#This Row],[Originele prijs]]*lijst[[#This Row],[% factor]]),lijst[[#This Row],[Originele prijs]])","v":0}]
[null,null,{"$f":"IF(AND(lijst[[#This Row],[Originele prijs]]>0,lijst[[#This Row],[% factor]]>0),SUM(lijst[[#This Row],[Originele prijs]]*lijst[[#This Row],[% factor]]),lijst[[#This Row],[Originele prijs]])","v":0}]
[null,null,{"$f":"IF(AND(lijst[[#This Row],[Originele prijs]]>0,lijst[[#This Row],[% factor]]>0),SUM(lijst[[#This Row],[Originele prijs]]*lijst[[#This Row],[% factor]]),lijst[[#This Row],[Originele prijs]])","v":0}]
[null,null,{"$f":"IF(AND(lijst[[#This Row],[Originele prijs]]>0,lijst[[#This Row],[% factor]]>0),SUM(lijst[[#This Row],[Originele prijs]]*lijst[[#This Row],[% factor]]),lijst[[#This Row],[Originele prijs]])","v":0}]
[null,null,{"$f":"IF(AND(lijst[[#This Row],[Originele prijs]]>0,lijst[[#This Row],[% factor]]>0),SUM(lijst[[#This Row],[Originele prijs]]*lijst[[#This Row],[% factor]]),lijst[[#This Row],[Originele prijs]])","v":0}]
[null,null,{"$f":"IF(AND(lijst[[#This Row],[Originele prijs]]>0,lijst[[#This Row],[% factor]]>0),SUM(lijst[[#This Row],[Originele prijs]]*lijst[[#This Row],[% factor]]),lijst[[#This Row],[Originele prijs]])","v":0}]
[null,null,{"$f":"IF(AND(lijst[[#This Row],[Originele prijs]]>0,lijst[[#This Row],[% factor]]>0),SUM(lijst[[#This Row],[Originele prijs]]*lijst[[#This Row],[% factor]]),lijst[[#This Row],[Originele prijs]])","v":0}]
[null,null,{"$f":"IF(AND(lijst[[#This Row],[Originele prijs]]>0,lijst[[#This Row],[% factor]]>0),SUM(lijst[[#This Row],[Originele prijs]]*lijst[[#This Row],[% factor]]),lijst[[#This Row],[Originele prijs]])","v":0}]
[null,null,{"$f":"IF(AND(lijst[[#This Row],[Originele prijs]]>0,lijst[[#This Row],[% factor]]>0),SUM(lijst[[#This Row],[Originele prijs]]*lijst[[#This Row],[% factor]]),lijst[[#This Row],[Originele prijs]])","v":0}]
[null,null,{"$f":"IF(AND(lijst[[#This Row],[Originele prijs]]>0,lijst[[#This Row],[% factor]]>0),SUM(lijst[[#This Row],[Originele prijs]]*lijst[[#This Row],[% factor]]),lijst[[#This Row],[Originele prijs]])","v":0}]
[null,null,{"$f":"IF(AND(lijst[[#This Row],[Originele prijs]]>0,lijst[[#This Row],[% factor]]>0),SUM(lijst[[#This Row],[Originele prijs]]*lijst[[#This Row],[% factor]]),lijst[[#This Row],[Originele prijs]])","v":0}]

{"sheet":"Locatie","index":5,"n_rows":112,"n_cols":6,"rows_kept":112,"cut":false,"hidden":false,"merged":[]}
["locatie","dag","lange dag","Soort","afk.soort","Datum"]
[" "]
["Antwerpen",1]
["Antwerpen - lang",null,1]
["Ardooie",1]
["Ardooie - lang",null,1]
["Baal",1]
["Baal - lang",null,1]
["Beringen",1]
["Beringen - lang",null,1]
["Boom",1]
["Boom - lang",null,1]
["Bredene",1]
["Bredene - lang",null,1]
["Dendermonde",1]
["Dendermonde - lang",null,1]
["Diegem",1]
["Diegem - lang",null,1]
["Eeklo",1]
["Eeklo - lang",null,1]
["Essen",1]
["Essen - lang",null,1]
["Gasselte - lang (NL)",null,1]
["Gasselte (NL)",1]
["Gavere",1]
["Gavere - lang",null,1]
["Gieten",1]
["Gieten - lang",null,1]
["Gullegem",1]
["Gullegem - lang",null,1]
["Hamme",1]
["Hamme - lang",null,1]
["Herentals",1]
["Herentals - lang",null,1]
["Heusden-zolder",1]
["Heusden-zolder - lang",null,1]
["Hoogerheide",1]
["Hoogerheide - lang",null,1]
["Hulst",1]
["Hulst - lang",null,1]
["Kemmelberg",1]
["Kemmelberg - lang",null,1]
["Koksijde",1]
["Koksijde - lang",null,1]
["Koppenberg",1]
["Koppenberg - lang",null,1]
["Kortrijk",1]
["Kortrijk - lang",null,1]
["Kruibeke",1]
["Kruibeke - lang",null,1]
["Leuven",1]
["Leuven - lang",null,1]
["Lille",1]
["Lille - lang",null,1]
["Loenhout",1]
["Loenhout - lang",null,1]
["Lokeren",1]
["Lokeren - lang",null,1]
["Maldegem",1]
["Maldegem - lang",null,1]
["memorial van damme",1]
["memorial van damme - lang",null,1]
["Merksplas",1]
["Merksplas - lang",null,1]
["Meulebeke",1]
["Meulebeke - lang",null,1]
["Middelkerke",1]
["Middelkerke - lang",null,1]
["Mol",1]
["Mol - lang",null,1]
["Namen",1]
["Namen - lang",null,1]
["Neerpelt",1]
["Neerpelt - lang",null,1]
["Niel",1]
["Niel - lang",null,1]
["Oisterwijk - lang (NL)",null,1]
["Oisterwijk (NL)",1]
["Oostende",1]
["Oostende - lang",null,1]
["Oostmalle",1]
["Oostmalle - lang",null,1]
["Otegem",1]
["Otegem - lang",null,1]
["Overijse",1]
["Overijse - lang",null,1]
["Ronde van Vlaanderen",1]
["Ronde van Vlaanderen - lang",null,1]
["Ronse",1]
["Ronse - lang",null,1]
["Rosmalen - lang (NL)",null,1]
["Rosmalen (NL)",1]
["Rucphen",1]
["Rucphen - lang",null,1]
["Ruddervoorde",1]
["Ruddervoorde - lang",null,1]
["Sint-Niklaas",1]
["Sint-Niklaas - lang",null,1]
["Valkenburg",1]
["Valkenburg - lang",null,1]
["VUB Brussel",1]
["VUB Brussel - lang",null,1]
["Waterloo",1]
["Waterloo - lang",null,1]
["Wevelgem",1]
["Wevelgem - lang",null,1]
["Woerden - lang (NL)",null,1]
["Woerden (NL)",1]
["Zonhoven",1]
["Zonhoven - lang",null,1]
["Zonnebeke",1]
["Zonnebeke - lang",null,1]